Workbook

Sheet Menu
A1: Challenge Alain Séris

Sheet Prépa
A2: TITRE DE LA COMPETITION : | D2: championnat départemental par équipes 2011
A4: Sous TITRE DE LA COMPETITION : | D4: 1er Tour Royan 10 avril 2011
A6: Date et Lieu : | D6: 2ème Tour Saintes 9 octobre 2011
A8: Nombre d'équipes qualifiées :
A11: NOM DES CLUBS : | C11: 1 | D11: LA JARNE 1 | G11: Trou | H11: Par
C12: 2 | D12: LA JARNE 2 | G12: 1 | H12: 4
C13: 3 | D13: LA PALMYRE 1 | G13: 2 | H13: 4
C14: 4 | D14: LA PALMYRE 2 | G14: 3 | H14: 5
C15: 5 | D15: LA PALMYRE 3 | G15: 4 | H15: 3
C16: 6 | D16: MONTENDRE 1 | G16: 5 | H16: 4
C17: 7 | D17: MONTENDRE 2 | G17: 6 | H17: 4
C18: 8 | D18: MONTENDRE 3 | G18: 7 | H18: 4
C19: 9 | D19: OLERON 1 | G19: 8 | H19: 3
C20: 10 | D20: OLERON 2 | G20: 9 | H20: 4
C21: 11 | D21: OLERON 3 | G21: 10 | H21: 5
C22: 12 | D22: ROYAN 1 | G22: 11 | H22: 4
C23: 13 | D23: ROYAN 2 | G23: 12 | H23: 4
C24: 14 | D24: ROYAN 3 | G24: 13 | H24: 5
C25: 15 | D25: SAINTONGE 1 | G25: 14 | H25: 3
C26: 16 | D26: SAINTONGE 2 | G26: 15 | H26: 4
C27: 17 | D27: LA ROCHELLE 1 | G27: 16 | H27: 4
C28: 18 | D28: LA ROCHELLE 2 | G28: 17 | H28: 3
C29: 19 | D29: LA ROCHELLE 3 | G29: 18 | H29: 4
C30: 20 | D30: ROCHEFORT 1
C31: 21 | D31: ROCHEFORT 2
C32: 22 | D32: LA VALLADE 1
C33: 23 | D33: SAINTONGE 3
C34: 24

Sheet Res
B1: =Prépa!D2 -> championnat départemental par équipes 2011 | Y1: =Prépa!G12 -> 1 | Z1: =Prépa!H12 -> 4
Y2: =Prépa!G13 -> 2 | Z2: =Prépa!H13 -> 4
B3: =Prépa!D4 -> 1er Tour Royan 10 avril 2011 | Y3: =Prépa!G14 -> 3 | Z3: =Prépa!H14 -> 5
Y4: =Prépa!G15 -> 4 | Z4: =Prépa!H15 -> 3
B5: =Prépa!D6 -> 2ème Tour Saintes 9 octobre 2011 | Y5: =Prépa!G16 -> 5 | Z5: =Prépa!H16 -> 4
Y6: =Prépa!G17 -> 6 | Z6: =Prépa!H17 -> 4
Y7: =Prépa!G18 -> 7 | Z7: =Prépa!H18 -> 4
Y8: =Prépa!G19 -> 8 | Z8: =Prépa!H19 -> 3
A9: =Prépa!C11 -> 1 | B9: =Prépa!D11 -> LA JARNE 1 | E9: Rang | F9: =ABCDEF!$Z$11 -> 1 | H9: TOTAL | I9: =IF(OR(E16="FOR",I16="FOR"),"FOR",IF(OR(ISTEXT(E16),ISTEXT(I16)),"DIS",(E16)+(I16))) -> 190 | Y9: =Prépa!G20 -> 9 | Z9: =Prépa!H20 -> 4
B10: A | C10: 23 | D10: ROMEZ .X | E10: 14 | F10: A | G10: 17 | H10: ROMEZ .X | I10: 23 | K10: =IF(E10="For",10,IF(ISTEXT(E10),1,0)) -> 0 | L10: =IF(OR(ISNUMBER(E10),ISBLANK(E10)),E10,0) -> 14 | M10: =MIN(L10:L15) -> 14 | N10: =IF(I10="For",10,IF(ISTEXT(I10),1,0)) -> 0 | O10: =IF(OR(ISNUMBER(I10),ISBLANK(I10)),I10,0) -> 23 | P10: =MIN(O10:O15) -> 9 | Y10: =Prépa!G21 -> 10 | Z10: =Prépa!H21 -> 5
B11: B | C11: 30 | D11: CARON G. | E11: 14 | F11: B | G11: 30 | H11: MAGARA G. | I11: 9 | K11: 0 | L11: 14 | M11: =MAX(L10:L15) -> 24 | N11: 0 | O11: 9 | P11: =MAX(O10:O15) -> 24 | Y11: =Prépa!G22 -> 11 | Z11: =Prépa!H22 -> 4
B12: C | C12: 18 | D12: TREMEGE M. | E12: 14 | F12: C | G12: 15 | H12: ROUY G. | I12: 19 | K12: 0 | L12: 14 | M12: =SMALL(E10:E15,2) -> 14 | N12: 0 | O12: 19 | P12: =LARGE(I10:I15,2) -> 23 | Y12: =Prépa!G23 -> 12 | Z12: =Prépa!H23 -> 4
B13: D | C13: 13 | D13: HOCQUARD A, | E13: 24 | F13: D | G13: 24 | H13: TENADET E. | I13: 13 | K13: 0 | L13: 24 | M13: =LARGE(E10:E15,3) -> 18 | N13: 0 | O13: 13 | P13: =LARGE(I10:I15,3) -> 21 | Y13: =Prépa!G24 -> 13 | Z13: =Prépa!H24 -> 5
B14: E | C14: 13 | D14: VITALI P. | E14: 18 | F14: E | G14: 13 | H14: VITALI P. | I14: 21 | K14: 0 | L14: 18 | M14: =LARGE(E10:E15,4) -> 14 | N14: 0 | O14: 21 | P14: =LARGE(I10:I15,4) -> 19 | Y14: =Prépa!G25 -> 14 | Z14: =Prépa!H25 -> 3
B15: F | C15: 13 | D15: BARSZEZAK F. | E15: 20 | F15: F | G15: 13 | H15: BARSZEZAK F. | I15: 24 | K15: 0 | L15: 20 | M15: =LARGE(E10:E15,5) -> 14 | N15: 0 | O15: 24 | P15: =LARGE(I10:I15,5) -> 13 | Y15: =Prépa!G26 -> 15 | Z15: =Prépa!H26 -> 4
D16: 5 meilleures 1er JOUR | E16: =IF(K16>6,"FOR",IF(K16>1,"DIS",IF(COUNTBLANK(E10:E15)>0,L16,L16-M10))) -> 90 | H16: 5 meilleures 2ème JOUR | I16: =IF(N16>6,"FOR",IF(N16>1,"DIS",IF(COUNTBLANK(I10:I15)>0,O16,O16-P10))) -> 100 | K16: =SUM(K10:K15) -> 0 | L16: =SUM(L10:L15) -> 104 | N16: =SUM(N10:N15) -> 0 | O16: =SUM(O10:O15) -> 109 | Y16: =Prépa!G27 -> 16 | Z16: =Prépa!H27 -> 4
Y17: =Prépa!G28 -> 17 | Z17: =Prépa!H28 -> 3
A18: =Prépa!C12 -> 2 | B18: =Prépa!D12 -> LA JARNE 2 | E18: Rang | F18: =ABCDEF!$Z$12 -> 2 | H18: TOTAL | I18: =IF(OR(E25="FOR",I25="FOR"),"FOR",IF(OR(ISTEXT(E25),ISTEXT(I25)),"DIS",(E25)+(I25))) -> 164 | Y18: =Prépa!G29 -> 18 | Z18: =Prépa!H29 -> 4
B19: A | C19: 22 | D19: DIET C. | E19: 11 | F19: A | G19: 22 | H19: MARTEL S. | I19: 25 | K19: =IF(E19="For",10,IF(ISTEXT(E19),1,0)) -> 0 | L19: =IF(OR(ISNUMBER(E19),ISBLANK(E19)),E19,0) -> 11 | M19: =MIN(L19:L24) -> 5 | N19: =IF(I19="For",10,IF(ISTEXT(I19),1,0)) -> 0 | O19: =IF(OR(ISNUMBER(I19),ISBLANK(I19)),I19,0) -> 25 | P19: =MIN(O19:O24) -> 9
B20: B | C20: 18 | D20: AUBIN J.L. | E20: 19 | F20: B | G20: 17 | H20: TAILLEU J. | I20: 24 | K20: 0 | L20: 19 | M20: =MAX(L19:L24) -> 19 | N20: 0 | O20: 24 | P20: =MAX(O19:O24) -> 25
B21: C | C21: 21 | D21: ILEAU J.J. | E21: 6 | F21: C | G21: 18 | H21: AUBIN J.L. | I21: 16 | K21: 0 | L21: 6 | M21: =SMALL(E19:E24,2) -> 6 | N21: 0 | O21: 16 | P21: =LARGE(I19:I24,2) -> 24
B22: D | C22: 36 | D22: MAGARA G. | E22: 5 | F22: D | G22: 20 | H22: EUGENE R. | I22: 18 | K22: 0 | L22: 5 | M22: =LARGE(E19:E24,3) -> 11 | N22: 0 | O22: 18 | P22: =LARGE(I19:I24,3) -> 18
B23: E | C23: 13 | D23: BENOIS G. | E23: 11 | F23: E | G23: 24 | H23: DOCHEZ J.C. | I23: 9 | K23: 0 | L23: 11 | M23: =LARGE(E19:E24,4) -> 11 | N23: 0 | O23: 9 | P23: =LARGE(I19:I24,4) -> 16
B24: F | C24: 17 | D24: BONNET F. | E24: 18 | F24: F | G24: 23 | H24: CARON G. | I24: 16 | K24: 0 | L24: 18 | M24: =LARGE(E19:E24,5) -> 6 | N24: 0 | O24: 16 | P24: =LARGE(I19:I24,5) -> 16
D25: 5 meilleures 1er JOUR | E25: =IF(K25>6,"FOR",IF(K25>1,"DIS",IF(COUNTBLANK(E19:E24)>0,L25,L25-M19))) -> 65 | H25: 5 meilleures 2ème JOUR | I25: =IF(N25>6,"FOR",IF(N25>1,"DIS",IF(COUNTBLANK(I19:I24)>0,O25,O25-P19))) -> 99 | K25: =SUM(K19:K24) -> 0 | L25: =SUM(L19:L24) -> 70 | N25: =SUM(N19:N24) -> 0 | O25: =SUM(O19:O24) -> 108
A27: =Prépa!C13 -> 3 | B27: =Prépa!D13 -> LA PALMYRE 1 | E27: Rang | F27: =ABCDEF!$Z$13 -> 3 | H27: TOTAL | I27: =IF(OR(E34="FOR",I34="FOR"),"FOR",IF(OR(ISTEXT(E34),ISTEXT(I34)),"DIS",(E34)+(I34))) -> 147
B28: A | C28: 16 | D28: FERRON G. | E28: 17 | F28: A | G28: 15 | H28: MARTY L. | I28: 21 | K28: =IF(E28="For",10,IF(ISTEXT(E28),1,0)) -> 0 | L28: =IF(OR(ISNUMBER(E28),ISBLANK(E28)),E28,0) -> 17 | M28: =MIN(L28:L33) -> 8 | N28: =IF(I28="For",10,IF(ISTEXT(I28),1,0)) -> 0 | O28: =IF(OR(ISNUMBER(I28),ISBLANK(I28)),I28,0) -> 21 | P28: =MIN(O28:O33) -> 7
B29: B | C29: 14 | D29: MARTY L. | E29: 21 | F29: B | G29: 25 | H29: BRILLANT A. | I29: 7 | K29: 0 | L29: 21 | M29: =MAX(L28:L33) -> 21 | N29: 0 | O29: 7 | P29: =MAX(O28:O33) -> 21
B30: C | C30: 25 | D30: ABBES M. | E30: 12 | F30: C | G30: 23 | H30: ABBES M. | I30: 16 | K30: 0 | L30: 12 | M30: =SMALL(E28:E33,2) -> 9 | N30: 0 | O30: 16 | P30: =LARGE(I28:I33,2) -> 21
B31: D | C31: 29 | D31: SOCHA F. | E31: 8 | F31: D | G31: 13 | H31: HERVE J. | I31: 21 | K31: 0 | L31: 8 | M31: =LARGE(E28:E33,3) -> 12 | N31: 0 | O31: 21 | P31: =LARGE(I28:I33,3) -> 16
B32: E | C32: 19 | D32: ANTONY M. | E32: 12 | F32: E | G32: 36 | H32: LEBRETON C. | I32: 7 | K32: 0 | L32: 12 | M32: =LARGE(E28:E33,4) -> 12 | N32: 0 | O32: 7 | P32: =LARGE(I28:I33,4) -> 11
B33: F | C33: 23 | D33: STOCCHI C. | E33: 9 | F33: F | G33: 25 | H33: LEBRETON N.. | I33: 11 | K33: 0 | L33: 9 | M33: =LARGE(E28:E33,5) -> 9 | N33: 0 | O33: 11 | P33: =LARGE(I28:I33,5) -> 7
D34: 5 meilleures 1er JOUR | E34: =IF(K34>6,"FOR",IF(K34>1,"DIS",IF(COUNTBLANK(E28:E33)>0,L34,L34-M28))) -> 71 | H34: 5 meilleures 2ème JOUR | I34: =IF(N34>6,"FOR",IF(N34>1,"DIS",IF(COUNTBLANK(I28:I33)>0,O34,O34-P28))) -> 76 | K34: =SUM(K28:K33) -> 0 | L34: =SUM(L28:L33) -> 79 | N34: =SUM(N28:N33) -> 0 | O34: =SUM(O28:O33) -> 83
A36: =Prépa!C14 -> 4 | B36: =Prépa!D14 -> LA PALMYRE 2 | E36: Rang | F36: =ABCDEF!$Z$14 -> 4 | H36: TOTAL
B37: A | C37: 13 | D37: DUTRIAS P. | E37: 19 | F37: A | K37: =IF(E37="For",10,IF(ISTEXT(E37),1,0)) -> 0 | L37: =IF(OR(ISNUMBER(E37),ISBLANK(E37)),E37,0) -> 19 | M37: =MIN(L37:L42) -> 5 | N37: =IF(I37="For",10,IF(ISTEXT(I37),1,0)) -> 0 | O37: =IF(OR(ISNUMBER(I37),ISBLANK(I37)),I37,0) -> 0 | P37: =MIN(O37:O42) -> 0
B38: B | C38: 15 | D38: GASSIAN F. | E38: 10 | F38: B | K38: 0 | L38: 10 | M38: =MAX(L37:L42) -> 19 | N38: 0 | O38: 0 | P38: =MAX(O37:O42) -> 0
B39: C | C39: 31 | D39: LEBRETON N. | E39: 13 | F39: C | K39: 0 | L39: 13 | M39: =SMALL(E37:E42,2) -> 7 | N39: 0 | O39: 0 | P39: =LARGE(I37:I42,2) -> 
B40: D | C40: 28 | D40: SCHMITT F. | E40: 5 | F40: D | K40: 0 | L40: 5 | M40: =LARGE(E37:E42,3) -> 10 | N40: 0 | O40: 0 | P40: =LARGE(I37:I42,3) -> 
B41: E | C41: 33 | D41: GIRARD D. | E41: 7 | F41: E | K41: 0 | L41: 7 | M41: =LARGE(E37:E42,4) -> 7 | N41: 0 | O41: 0 | P41: =LARGE(I37:I42,4) -> 
B42: F | C42: 34 | D42: COUTRAS N. | E42: 7 | F42: F | K42: 0 | L42: 7 | M42: =LARGE(E37:E42,5) -> 7 | N42: 0 | O42: 0 | P42: =LARGE(I37:I42,5) -> 
D43: 5 meilleures 1er JOUR | E43: =IF(K43>6,"FOR",IF(K43>1,"DIS",IF(COUNTBLANK(E37:E42)>0,L43,L43-M37))) -> 56 | H43: 5 meilleures 2ème JOUR | I43: =IF(N43>6,"FOR",IF(N43>1,"DIS",IF(COUNTBLANK(I37:I42)>0,O43,O43-P37))) -> 0 | K43: =SUM(K37:K42) -> 0 | L43: =SUM(L37:L42) -> 61 | N43: =SUM(N37:N42) -> 0 | O43: =SUM(O37:O42) -> 0
A45: =Prépa!C15 -> 5 | B45: =Prépa!D15 -> LA PALMYRE 3 | E45: Rang | F45: =ABCDEF!$Z$15 -> 5 | H45: TOTAL | I45: =IF(OR(E52="FOR",I52="FOR"),"FOR",IF(OR(ISTEXT(E52),ISTEXT(I52)),"DIS",(E52)+(I52))) -> 62
B46: A | C46: 24 | D46: ORDONNAUD F. | E46: 13 | F46: A | K46: =IF(E46="For",10,IF(ISTEXT(E46),1,0)) -> 0 | L46: =IF(OR(ISNUMBER(E46),ISBLANK(E46)),E46,0) -> 13 | M46: =MIN(L46:L51) -> 0 | N46: =IF(I46="For",10,IF(ISTEXT(I46),1,0)) -> 0 | O46: =IF(OR(ISNUMBER(I46),ISBLANK(I46)),I46,0) -> 0 | P46: =MIN(O46:O51) -> 0
B47: B | C47: 30 | D47: COUBRET J.L. | E47: 0 | F47: B | K47: 0 | L47: 0 | M47: =MAX(L46:L51) -> 15 | N47: 0 | O47: 0 | P47: =MAX(O46:O51) -> 0
B48: C | C48: 14 | D48: BOULANGER J. M. | E48: 15 | F48: C | K48: 0 | L48: 15 | M48: =SMALL(E46:E51,2) -> 8 | N48: 0 | O48: 0 | P48: =LARGE(I46:I51,2) -> 
B49: D | C49: 25 | D49: SIMON P. | E49: 15 | F49: D | K49: 0 | L49: 15 | M49: =LARGE(E46:E51,3) -> 13 | N49: 0 | O49: 0 | P49: =LARGE(I46:I51,3) -> 
B50: E | C50: 27 | D50: BRILLANT A. | E50: 11 | F50: E | K50: 0 | L50: 11 | M50: =LARGE(E46:E51,4) -> 11 | N50: 0 | O50: 0 | P50: =LARGE(I46:I51,4) -> 
B51: F | C51: 18 | D51: BOURBONNAIS R. | E51: 8 | F51: F | K51: 0 | L51: 8 | M51: =LARGE(E46:E51,5) -> 8 | N51: 0 | O51: 0 | P51: =LARGE(I46:I51,5) -> 
D52: 5 meilleures 1er JOUR | E52: =IF(K52>6,"FOR",IF(K52>1,"DIS",IF(COUNTBLANK(E46:E51)>0,L52,L52-M46))) -> 62 | H52: 5 meilleures 2ème JOUR | I52: =IF(N52>6,"FOR",IF(N52>1,"DIS",IF(COUNTBLANK(I46:I51)>0,O52,O52-P46))) -> 0 | K52: =SUM(K46:K51) -> 0 | L52: =SUM(L46:L51) -> 62 | N52: =SUM(N46:N51) -> 0 | O52: =SUM(O46:O51) -> 0
A54: =Prépa!C16 -> 6 | B54: =Prépa!D16 -> MONTENDRE 1 | E54: Rang | F54: =ABCDEF!$Z$16 -> 6 | H54: TOTAL | I54: =IF(OR(E61="FOR",I61="FOR"),"FOR",IF(OR(ISTEXT(E61),ISTEXT(I61)),"DIS",(E61)+(I61))) -> 179
B55: A | C55: 16 | D55: FAURE D. | E55: 17 | F55: A | G55: 14 | H55: RAULT G. | I55: 23 | K55: =IF(E55="For",10,IF(ISTEXT(E55),1,0)) -> 0 | L55: =IF(OR(ISNUMBER(E55),ISBLANK(E55)),E55,0) -> 17 | M55: =MIN(L55:L60) -> 12 | N55: =IF(I55="For",10,IF(ISTEXT(I55),1,0)) -> 0 | O55: =IF(OR(ISNUMBER(I55),ISBLANK(I55)),I55,0) -> 23 | P55: =MIN(O55:O60) -> 9
B56: B | C56: 14 | D56: DUCAU H. | E56: 14 | F56: B | G56: 32 | H56: COUREAU N. | I56: 9 | K56: 0 | L56: 14 | M56: =MAX(L55:L60) -> 21 | N56: 0 | O56: 9 | P56: =MAX(O55:O60) -> 23
B57: C | C57: 17 | D57: PASQUET P. | E57: 21 | F57: C | G57: 16 | H57: FAURE D. | I57: 14 | K57: 0 | L57: 21 | M57: =SMALL(E55:E60,2) -> 14 | N57: 0 | O57: 14 | P57: =LARGE(I55:I60,2) -> 22
B58: D | C58: 18 | D58: DEFAYE D. | E58: 19 | F58: D | G58: 16 | H58: MASSE P. | I58: 18 | K58: 0 | L58: 19 | M58: =LARGE(E55:E60,3) -> 17 | N58: 0 | O58: 18 | P58: =LARGE(I55:I60,3) -> 18
B59: E | C59: 24 | D59: NAISSANT S. | E59: 12 | F59: E | G59: 20 | H59: BLOUIN F. | I59: 17 | K59: 0 | L59: 12 | M59: =LARGE(E55:E60,4) -> 14 | N59: 0 | O59: 17 | P59: =LARGE(I55:I60,4) -> 17
B60: F | C60: 26 | D60: COUREAUD A. | E60: 14 | F60: F | G60: 15 | H60: DUCAU H. | I60: 22 | K60: 0 | L60: 14 | M60: =LARGE(E55:E60,5) -> 14 | N60: 0 | O60: 22 | P60: =LARGE(I55:I60,5) -> 14
D61: 5 meilleures 1er JOUR | E61: =IF(K61>6,"FOR",IF(K61>1,"DIS",IF(COUNTBLANK(E55:E60)>0,L61,L61-M55))) -> 85 | H61: 5 meilleures 2ème JOUR | I61: =IF(N61>6,"FOR",IF(N61>1,"DIS",IF(COUNTBLANK(I55:I60)>0,O61,O61-P55))) -> 94 | K61: =SUM(K55:K60) -> 0 | L61: =SUM(L55:L60) -> 97 | N61: =SUM(N55:N60) -> 0 | O61: =SUM(O55:O60) -> 103
A63: =Prépa!C17 -> 7 | B63: =Prépa!D17 -> MONTENDRE 2 | E63: Rang | F63: =ABCDEF!$Z$17 -> 7 | H63: TOTAL | I63: =IF(OR(E70="FOR",I70="FOR"),"FOR",IF(OR(ISTEXT(E70),ISTEXT(I70)),"DIS",(E70)+(I70))) -> 131
B64: A | C64: 20 | D64: DAUBANES J. P. | E64: 15 | F64: A | G64: 16 | H64: PASQUET P. | I64: 21 | K64: =IF(E64="For",10,IF(ISTEXT(E64),1,0)) -> 0 | L64: =IF(OR(ISNUMBER(E64),ISBLANK(E64)),E64,0) -> 15 | M64: =MIN(L64:L69) -> 7 | N64: =IF(I64="For",10,IF(ISTEXT(I64),1,0)) -> 0 | O64: =IF(OR(ISNUMBER(I64),ISBLANK(I64)),I64,0) -> 21 | P64: =MIN(O64:O69) -> 6
B65: B | C65: 19 | D65: BLOUIN F. | E65: 8 | F65: B | G65: 18 | H65: DEFAYE D. | I65: 14 | K65: 0 | L65: 8 | M65: =MAX(L64:L69) -> 15 | N65: 0 | O65: 14 | P65: =MAX(O64:O69) -> 21
B66: C | C66: 21 | D66: SCHELSTRAETE M. | E66: 10 | F66: C | G66: 20 | H66: DAUBANES J. P. | I66: 18 | K66: 0 | L66: 10 | M66: =SMALL(E64:E69,2) -> 8 | N66: 0 | O66: 18 | P66: =LARGE(I64:I69,2) -> 18
B67: D | C67: 27 | D67: BENHAMOU B. | E67: 8 | F67: D | G67: 19 | H67: BERTET J. | I67: 6 | K67: 0 | L67: 8 | M67: =LARGE(E64:E69,3) -> 10 | N67: 0 | O67: 6 | P67: =LARGE(I64:I69,3) -> 14
B68: E | C68: 28 | D68: CALVET L. | E68: 12 | F68: E | G68: 24 | H68: COUREAUD A. | I68: 11 | K68: 0 | L68: 12 | M68: =LARGE(E64:E69,4) -> 8 | N68: 0 | O68: 11 | P68: =LARGE(I64:I69,4) -> 14
B69: F | C69: 30 | D69: ROMO J. | E69: 7 | F69: F | G69: 25 | H69: MONTERO P. | I69: 14 | K69: 0 | L69: 7 | M69: =LARGE(E64:E69,5) -> 8 | N69: 0 | O69: 14 | P69: =LARGE(I64:I69,5) -> 11
D70: 5 meilleures 1er JOUR | E70: =IF(K70>6,"FOR",IF(K70>1,"DIS",IF(COUNTBLANK(E64:E69)>0,L70,L70-M64))) -> 53 | H70: 5 meilleures 2ème JOUR | I70: =IF(N70>6,"FOR",IF(N70>1,"DIS",IF(COUNTBLANK(I64:I69)>0,O70,O70-P64))) -> 78 | K70: =SUM(K64:K69) -> 0 | L70: =SUM(L64:L69) -> 60 | N70: =SUM(N64:N69) -> 0 | O70: =SUM(O64:O69) -> 84
A72: =Prépa!C18 -> 8 | B72: =Prépa!D18 -> MONTENDRE 3 | E72: Rang | F72: =ABCDEF!$Z$18 -> 9 | H72: TOTAL | I72: =IF(OR(E79="FOR",I79="FOR"),"FOR",IF(OR(ISTEXT(E79),ISTEXT(I79)),"DIS",(E79)+(I79))) -> FOR
B73: A | C73: 34 | D73: BALDOMERO P. | E73: 11 | F73: A | G73: 36 | H73: DEJOUX A. | I73: 9 | K73: =IF(E73="For",10,IF(ISTEXT(E73),1,0)) -> 0 | L73: =IF(OR(ISNUMBER(E73),ISBLANK(E73)),E73,0) -> 11 | M73: =MIN(L73:L78) -> 0 | N73: =IF(I73="For",10,IF(ISTEXT(I73),1,0)) -> 0 | O73: =IF(OR(ISNUMBER(I73),ISBLANK(I73)),I73,0) -> 9 | P73: =MIN(O73:O78) -> 0
B74: B | C74: 36 | D74: GAUCI L. | E74: 5 | F74: B | G74: 36 | H74: HERAULT J. | I74: 3 | K74: 0 | L74: 5 | M74: =MAX(L73:L78) -> 11 | N74: 0 | O74: 3 | P74: =MAX(O73:O78) -> 12
B75: C | C75: 36 | D75: COUREAU N. | E75: 5 | F75: C | G75: 30 | H75: VIGEANT W. | I75: 6 | K75: 0 | L75: 5 | M75: =SMALL(E73:E78,2) -> 5 | N75: 0 | O75: 6 | P75: =LARGE(I73:I78,2) -> 11
B76: D | C76: 36 | D76: HERAULT J. | E76: 3 | F76: D | G76: 29 | H76: BALDOMERO P. | I76: 11 | K76: 0 | L76: 3 | M76: =LARGE(E73:E78,3) -> 5 | N76: 0 | O76: 11 | P76: =LARGE(I73:I78,3) -> 9
B77: E | C77: 26 | D77: ERB C. | E77: for | F77: E | G77: 27 | H77: BENHAMOU B. | I77: 12 | K77: 10 | L77: 0 | M77: =LARGE(E73:E78,4) -> 3 | N77: 0 | O77: 12 | P77: =LARGE(I73:I78,4) -> 6
B78: F | C78: 27 | D78: SAUVAT P. | E78: for | F78: F | K78: 10 | L78: 0 | M78: =LARGE(E73:E78,5) ->  | N78: 0 | O78: 0 | P78: =LARGE(I73:I78,5) -> 3
D79: 5 meilleures 1er JOUR | E79: =IF(K79>6,"FOR",IF(K79>1,"DIS",IF(COUNTBLANK(E73:E78)>0,L79,L79-M73))) -> FOR | H79: 5 meilleures 2ème JOUR | I79: =IF(N79>6,"FOR",IF(N79>1,"DIS",IF(COUNTBLANK(I73:I78)>0,O79,O79-P73))) -> 41 | K79: =SUM(K73:K78) -> 20 | L79: =SUM(L73:L78) -> 24 | N79: =SUM(N73:N78) -> 0 | O79: =SUM(O73:O78) -> 41
A81: =Prépa!C19 -> 9 | B81: OLERON 1 | E81: Rang | F81: =ABCDEF!$Z$19 -> 10 | H81: TOTAL | I81: =IF(OR(E88="FOR",I88="FOR"),"FOR",IF(OR(ISTEXT(E88),ISTEXT(I88)),"DIS",(E88)+(I88))) -> 149
B82: A | C82: 16 | D82: PIQUET C. | E82: 19 | F82: A | G82: 18 | H82: DANTON D. | I82: 13 | K82: =IF(E82="For",10,IF(ISTEXT(E82),1,0)) -> 0 | L82: =IF(OR(ISNUMBER(E82),ISBLANK(E82)),E82,0) -> 19 | M82: =MIN(L82:L87) -> 10 | N82: =IF(I82="For",10,IF(ISTEXT(I82),1,0)) -> 0 | O82: =IF(OR(ISNUMBER(I82),ISBLANK(I82)),I82,0) -> 13 | P82: =MIN(O82:O87) -> 10
B83: B | C83: 16 | D83: SPIRIDONOV P. | E83: 20 | F83: B | G83: 17 | H83: CHALIN J.P. | I83: 11 | K83: 0 | L83: 20 | M83: =MAX(L82:L87) -> 20 | N83: 0 | O83: 11 | P83: =MAX(O82:O87) -> 17
B84: C | C84: 29 | D84: BENOIST F. | E84: 10 | F84: C | G84: 14 | H84: GISLARD P. | I84: 17 | K84: 0 | L84: 10 | M84: =SMALL(E82:E87,2) -> 13 | N84: 0 | O84: 17 | P84: =LARGE(I82:I87,2) -> 15
B85: D | C85: 17 | D85: DANTON D. | E85: 13 | F85: D | G85: 21 | H85: CIPIERRE M. | I85: 10 | K85: 0 | L85: 13 | M85: =LARGE(E82:E87,3) -> 17 | N85: 0 | O85: 10 | P85: =LARGE(I82:I87,3) -> 13
B86: E | C86: 15 | D86: AMINOT S. | E86: 17 | F86: E | G86: 24 | H86: ANDRIEUX J.P. | I86: 11 | K86: 0 | L86: 17 | M86: =LARGE(E82:E87,4) -> 13 | N86: 0 | O86: 11 | P86: =LARGE(I82:I87,4) -> 11
B87: F | C87: 17 | D87: FIGUERA M. | E87: 13 | F87: F | G87: 16 | H87: AMINOT S. | I87: 15 | K87: 0 | L87: 13 | M87: =LARGE(E82:E87,5) -> 13 | N87: 0 | O87: 15 | P87: =LARGE(I82:I87,5) -> 11
D88: 5 meilleures 1er JOUR | E88: =IF(K88>6,"FOR",IF(K88>1,"DIS",IF(COUNTBLANK(E82:E87)>0,L88,L88-M82))) -> 82 | H88: 5 meilleures 2ème JOUR | I88: =IF(N88>6,"FOR",IF(N88>1,"DIS",IF(COUNTBLANK(I82:I87)>0,O88,O88-P82))) -> 67 | K88: =SUM(K82:K87) -> 0 | L88: =SUM(L82:L87) -> 92 | N88: =SUM(N82:N87) -> 0 | O88: =SUM(O82:O87) -> 77
A90: =Prépa!C20 -> 10 | B90: =Prépa!D20 -> OLERON 2 | E90: Rang | F90: =ABCDEF!$Z$20 -> 11 | H90: TOTAL | I90: =IF(OR(E97="FOR",I97="FOR"),"FOR",IF(OR(ISTEXT(E97),ISTEXT(I97)),"DIS",(E97)+(I97))) -> 136
B91: A | C91: 18 | D91: LALIS J. | E91: 14 | F91: A | G91: 26 | H91: BENOIST F. | I91: 5 | K91: =IF(E91="For",10,IF(ISTEXT(E91),1,0)) -> 0 | L91: =IF(OR(ISNUMBER(E91),ISBLANK(E91)),E91,0) -> 14 | M91: =MIN(L91:L96) -> 5 | N91: =IF(I91="For",10,IF(ISTEXT(I91),1,0)) -> 0 | O91: =IF(OR(ISNUMBER(I91),ISBLANK(I91)),I91,0) -> 5 | P91: =MIN(O91:O96) -> 5
B92: B | C92: 16 | D92: CHALIN J .P. | E92: 11 | F92: B | G92: 25 | H92: CHALIN M. | I92: 14 | K92: 0 | L92: 11 | M92: =MAX(L91:L96) -> 22 | N92: 0 | O92: 14 | P92: =MAX(O91:O96) -> 18
B93: C | C93: 26 | D93: CHALIN M. | E93: 5 | F93: C | G93: 20 | H93: GUILLOCHEAU J.M. | I93: 14 | K93: 0 | L93: 5 | M93: =SMALL(E91:E96,2) -> 8 | N93: 0 | O93: 14 | P93: =LARGE(I91:I96,2) -> 14
B94: D | C94: 16 | D94: DECLERC A. | E94: 22 | F94: D | G94: 31 | H94: CIPIERRE C. | I94: 9 | K94: 0 | L94: 22 | M94: =LARGE(E91:E96,3) -> 13 | N94: 0 | O94: 9 | P94: =LARGE(I91:I96,3) -> 14
B95: E | C95: 16 | D95: GISLARD P. | E95: 13 | F95: E | G95: 13 | H95: GAUTIER F. | I95: 18 | K95: 0 | L95: 13 | M95: =LARGE(E91:E96,4) -> 11 | N95: 0 | O95: 18 | P95: =LARGE(I91:I96,4) -> 13
B96: F | C96: 22 | D96: FIGUERA A. | E96: 8 | F96: F | G96: 13 | H96: MOUNIER P. | I96: 13 | K96: 0 | L96: 8 | M96: =LARGE(E91:E96,5) -> 8 | N96: 0 | O96: 13 | P96: =LARGE(I91:I96,5) -> 9
D97: 5 meilleures 1er JOUR | E97: =IF(K97>6,"FOR",IF(K97>1,"DIS",IF(COUNTBLANK(E91:E96)>0,L97,L97-M91))) -> 68 | H97: 5 meilleures 2ème JOUR | I97: =IF(N97>6,"FOR",IF(N97>1,"DIS",IF(COUNTBLANK(I91:I96)>0,O97,O97-P91))) -> 68 | K97: =SUM(K91:K96) -> 0 | L97: =SUM(L91:L96) -> 73 | N97: =SUM(N91:N96) -> 0 | O97: =SUM(O91:O96) -> 73
A99: =Prépa!C21 -> 11 | B99: =Prépa!D21 -> OLERON 3 | E99: Rang | F99: =ABCDEF!$Z$21 -> 12 | H99: TOTAL | I99: =IF(OR(E106="FOR",I106="FOR"),"FOR",IF(OR(ISTEXT(E106),ISTEXT(I106)),"DIS",(E106)+(I106))) -> 102
B100: A | C100: 23 | D100: ANDRIEUX J. P. | E100: 13 | F100: A | G100: 14 | H100: PIQUET C. | I100: 11 | K100: =IF(E100="For",10,IF(ISTEXT(E100),1,0)) -> 0 | L100: =IF(OR(ISNUMBER(E100),ISBLANK(E100)),E100,0) -> 13 | M100: =MIN(L100:L105) -> 4 | N100: =IF(I100="For",10,IF(ISTEXT(I100),1,0)) -> 0 | O100: =IF(OR(ISNUMBER(I100),ISBLANK(I100)),I100,0) -> 11 | P100: =MIN(O100:O105) -> 4
B101: B | C101: 20 | D101: GUILLOCHEAU J. M. | E101: 9 | F101: B | G101: 17 | H101: HEUDELOT N. | I101: 8 | K101: 0 | L101: 9 | M101: =MAX(L100:L105) -> 17 | N101: 0 | O101: 8 | P101: =MAX(O100:O105) -> 11
B102: C | C102: 22 | D102: GAGNADOUX D. | E102: 8 | F102: C | G102: 29 | H102: GUILLOCHEAU N. | I102: 4 | K102: 0 | L102: 8 | M102: =SMALL(E100:E105,2) -> 8 | N102: 0 | O102: 4 | P102: =LARGE(I100:I105,2) -> 10
B103: D | C103: 22 | D103: GAGNADOUX C. | E103: 9 | F103: D | G103: 24 | H103: LENOIR P. | I103: 7 | K103: 0 | L103: 9 | M103: =LARGE(E100:E105,3) -> 9 | N103: 0 | O103: 7 | P103: =LARGE(I100:I105,3) -> 10
B104: E | C104: 31 | D104: LENOIR P. | E104: 4 | F104: E | G104: 23 | H104: GAGNADOUX D; | I104: 10 | K104: 0 | L104: 4 | M104: =LARGE(E100:E105,4) -> 9 | N104: 0 | O104: 10 | P104: =LARGE(I100:I105,4) -> 8
B105: F | C105: 17 | D105: HEUDOLOT N. | E105: 17 | F105: F | G105: 25 | H105: MORGAT X. | I105: 10 | K105: 0 | L105: 17 | M105: =LARGE(E100:E105,5) -> 8 | N105: 0 | O105: 10 | P105: =LARGE(I100:I105,5) -> 7
D106: 5 meilleures 1er JOUR | E106: =IF(K106>6,"FOR",IF(K106>1,"DIS",IF(COUNTBLANK(E100:E105)>0,L106,L106-M100))) -> 56 | H106: 5 meilleures 2ème JOUR | I106: =IF(N106>6,"FOR",IF(N106>1,"DIS",IF(COUNTBLANK(I100:I105)>0,O106,O106-P100))) -> 46 | K106: =SUM(K100:K105) -> 0 | L106: =SUM(L100:L105) -> 60 | N106: =SUM(N100:N105) -> 0 | O106: =SUM(O100:O105) -> 50
A108: =Prépa!C22 -> 12 | B108: =Prépa!D22 -> ROYAN 1 | E108: Rang | F108: =ABCDEF!$Z$22 -> 13 | H108: TOTAL | I108: =IF(OR(E115="FOR",I115="FOR"),"FOR",IF(OR(ISTEXT(E115),ISTEXT(I115)),"DIS",(E115)+(I115))) -> 85
B109: A | C109: 13 | D109: DOVERGNE F. | E109: 22 | F109: A | K109: =IF(E109="For",10,IF(ISTEXT(E109),1,0)) -> 0 | L109: =IF(OR(ISNUMBER(E109),ISBLANK(E109)),E109,0) -> 22 | M109: =MIN(L109:L114) -> 8 | N109: =IF(I109="For",10,IF(ISTEXT(I109),1,0)) -> 0 | O109: =IF(OR(ISNUMBER(I109),ISBLANK(I109)),I109,0) -> 0 | P109: =MIN(O109:O114) -> 0
B110: B | C110: 15 | D110: GASPARINI M. | E110: 17 | F110: B | K110: 0 | L110: 17 | M110: =MAX(L109:L114) -> 22 | N110: 0 | O110: 0 | P110: =MAX(O109:O114) -> 0
B111: C | C111: 16 | D111: FAURE J. | E111: 17 | F111: C | K111: 0 | L111: 17 | M111: =SMALL(E109:E114,2) -> 10 | N111: 0 | O111: 0 | P111: =LARGE(I109:I114,2) -> 
B112: D | C112: 19 | D112: DUBOIS J.C. | E112: 19 | F112: D | K112: 0 | L112: 19 | M112: =LARGE(E109:E114,3) -> 17 | N112: 0 | O112: 0 | P112: =LARGE(I109:I114,3) -> 
B113: E | C113: 26 | D113: BOYAUT A. | E113: 8 | F113: E | K113: 0 | L113: 8 | M113: =LARGE(E109:E114,4) -> 17 | N113: 0 | O113: 0 | P113: =LARGE(I109:I114,4) -> 
B114: F | C114: 29 | D114: TIERS P. | E114: 10 | F114: F | K114: 0 | L114: 10 | M114: =LARGE(E109:E114,5) -> 10 | N114: 0 | O114: 0 | P114: =LARGE(I109:I114,5) -> 
D115: 5 meilleures 1er JOUR | E115: =IF(K115>6,"FOR",IF(K115>1,"DIS",IF(COUNTBLANK(E109:E114)>0,L115,L115-M109))) -> 85 | H115: 5 meilleures 2ème JOUR | I115: =IF(N115>6,"FOR",IF(N115>1,"DIS",IF(COUNTBLANK(I109:I114)>0,O115,O115-P109))) -> 0 | K115: =SUM(K109:K114) -> 0 | L115: =SUM(L109:L114) -> 93 | N115: =SUM(N109:N114) -> 0 | O115: =SUM(O109:O114) -> 0
A117: =Prépa!C23 -> 13 | B117: =Prépa!D23 -> ROYAN 2 | E117: Rang | F117: =ABCDEF!$Z$23 -> 14 | H117: TOTAL | I117: =IF(OR(E124="FOR",I124="FOR"),"FOR",IF(OR(ISTEXT(E124),ISTEXT(I124)),"DIS",(E124)+(I124))) -> 94
B118: A | C118: 14 | D118: THOMAS P. | E118: 26 | F118: A | K118: =IF(E118="For",10,IF(ISTEXT(E118),1,0)) -> 0 | L118: =IF(OR(ISNUMBER(E118),ISBLANK(E118)),E118,0) -> 26 | M118: =MIN(L118:L123) -> 9 | N118: =IF(I118="For",10,IF(ISTEXT(I118),1,0)) -> 0 | O118: =IF(OR(ISNUMBER(I118),ISBLANK(I118)),I118,0) -> 0 | P118: =MIN(O118:O123) -> 0
B119: B | C119: 14 | D119: BOURNIQUE J.P. | E119: 23 | F119: B | K119: 0 | L119: 23 | M119: =MAX(L118:L123) -> 26 | N119: 0 | O119: 0 | P119: =MAX(O118:O123) -> 0
B120: C | C120: 16 | D120: FERNANDEZ P. | E120: 19 | F120: C | K120: 0 | L120: 19 | M120: =SMALL(E118:E123,2) -> 12 | N120: 0 | O120: 0 | P120: =LARGE(I118:I123,2) -> 
B121: D | C121: 19 | D121: SEULIN D. | E121: 14 | F121: D | K121: 0 | L121: 14 | M121: =LARGE(E118:E123,3) -> 19 | N121: 0 | O121: 0 | P121: =LARGE(I118:I123,3) -> 
B122: E | C122: 20 | D122: FLORENTIN T. | E122: 12 | F122: E | K122: 0 | L122: 12 | M122: =LARGE(E118:E123,4) -> 14 | N122: 0 | O122: 0 | P122: =LARGE(I118:I123,4) -> 
B123: F | C123: 36 | D123: LEWANDOWSKI N. | E123: 9 | F123: F | K123: 0 | L123: 9 | M123: =LARGE(E118:E123,5) -> 12 | N123: 0 | O123: 0 | P123: =LARGE(I118:I123,5) -> 
D124: 5 meilleures 1er JOUR | E124: =IF(K124>6,"FOR",IF(K124>1,"DIS",IF(COUNTBLANK(E118:E123)>0,L124,L124-M118))) -> 94 | H124: 5 meilleures 2ème JOUR | I124: =IF(N124>6,"FOR",IF(N124>1,"DIS",IF(COUNTBLANK(I118:I123)>0,O124,O124-P118))) -> 0 | K124: =SUM(K118:K123) -> 0 | L124: =SUM(L118:L123) -> 103 | N124: =SUM(N118:N123) -> 0 | O124: =SUM(O118:O123) -> 0
A126: =Prépa!C24 -> 14 | B126: =Prépa!D24 -> ROYAN 3 | E126: Rang | F126: =ABCDEF!$Z$24 -> 15 | H126: TOTAL | I126: =IF(OR(E133="FOR",I133="FOR"),"FOR",IF(OR(ISTEXT(E133),ISTEXT(I133)),"DIS",(E133)+(I133))) -> 163
B127: A | C127: 14 | D127: GARCIA OLMO Margot | E127: 22 | F127: A | G127: 14 | H127: HELIAS R. | I127: 20 | K127: =IF(E127="For",10,IF(ISTEXT(E127),1,0)) -> 0 | L127: =IF(OR(ISNUMBER(E127),ISBLANK(E127)),E127,0) -> 22 | M127: =MIN(L127:L132) -> 10 | N127: =IF(I127="For",10,IF(ISTEXT(I127),1,0)) -> 0 | O127: =IF(OR(ISNUMBER(I127),ISBLANK(I127)),I127,0) -> 20 | P127: =MIN(O127:O132) -> 4
B128: B | C128: 15 | D128: GARCIA OLMO Martin | E128: 19 | F128: B | G128: 20 | H128: PILLET C. | I128: 7 | K128: 0 | L128: 19 | M128: =MAX(L127:L132) -> 22 | N128: 0 | O128: 7 | P128: =MAX(O127:O132) -> 22
B129: C | C129: 19 | D129: COLIN M. | E129: 14 | F129: C | G129: 19 | H129: COLIN M | I129: 14 | K129: 0 | L129: 14 | M129: =SMALL(E127:E132,2) -> 12 | N129: 0 | O129: 14 | P129: =LARGE(I127:I132,2) -> 20
B130: D | C130: 18 | D130: ERARD Y. | E130: 12 | F130: D | G130: 14 | H130: GARCIA OLMO Margot. | I130: 22 | K130: 0 | L130: 12 | M130: =LARGE(E127:E132,3) -> 18 | N130: 0 | O130: 22 | P130: =LARGE(I127:I132,3) -> 15
B131: E | C131: 28 | D131: GUILLET C. | E131: 18 | F131: E | G131: 16 | H131: GARCIA OLMO Martin | I131: 15 | K131: 0 | L131: 18 | M131: =LARGE(E127:E132,4) -> 14 | N131: 0 | O131: 15 | P131: =LARGE(I127:I132,4) -> 14
B132: F | C132: 35 | D132: POTTIER C. | E132: 10 | F132: F | G132: 33 | H132: POTTIER C. | I132: 4 | K132: 0 | L132: 10 | M132: =LARGE(E127:E132,5) -> 12 | N132: 0 | O132: 4 | P132: =LARGE(I127:I132,5) -> 7
D133: 5 meilleures 1er JOUR | E133: =IF(K133>6,"FOR",IF(K133>1,"DIS",IF(COUNTBLANK(E127:E132)>0,L133,L133-M127))) -> 85 | H133: 5 meilleures 2ème JOUR | I133: =IF(N133>6,"FOR",IF(N133>1,"DIS",IF(COUNTBLANK(I127:I132)>0,O133,O133-P127))) -> 78 | K133: =SUM(K127:K132) -> 0 | L133: =SUM(L127:L132) -> 95 | N133: =SUM(N127:N132) -> 0 | O133: =SUM(O127:O132) -> 82
A135: =Prépa!C25 -> 15 | B135: =Prépa!D25 -> SAINTONGE 1 | E135: Rang | F135: =ABCDEF!$Z$25 -> 16 | H135: TOTAL | I135: =IF(OR(E142="FOR",I142="FOR"),"FOR",IF(OR(ISTEXT(E142),ISTEXT(I142)),"DIS",(E142)+(I142))) -> 162
B136: A | C136: 15 | D136: WESTCOMBES R. | E136: 14 | F136: A | G136: 15 | H136: GOUBARD G. | I136: 22 | K136: =IF(E136="For",10,IF(ISTEXT(E136),1,0)) -> 0 | L136: =IF(OR(ISNUMBER(E136),ISBLANK(E136)),E136,0) -> 14 | M136: =MIN(L136:L141) -> 6 | N136: =IF(I136="For",10,IF(ISTEXT(I136),1,0)) -> 0 | O136: =IF(OR(ISNUMBER(I136),ISBLANK(I136)),I136,0) -> 22 | P136: =MIN(O136:O141) -> 6
B137: B | C137: 15 | D137: BELLVERT P. | E137: 14 | F137: B | G137: 15 | H137: BERRONEAU Ch. | I137: 18 | K137: 0 | L137: 14 | M137: =MAX(L136:L141) -> 18 | N137: 0 | O137: 18 | P137: =MAX(O136:O141) -> 22
B138: C | C138: 17 | D138: GOUBARD G. | E138: 18 | F138: C | G138: 17 | H138: GOYON P. | I138: 21 | K138: 0 | L138: 18 | M138: =SMALL(E136:E141,2) -> 9 | N138: 0 | O138: 21 | P138: =LARGE(I136:I141,2) -> 21
B139: D | C139: 18 | D139: LABROUSSE P. | E139: 6 | F139: D | G139: 14 | H139: LEMARCHAND M. | I139: 19 | K139: 0 | L139: 6 | M139: =LARGE(E136:E141,3) -> 14 | N139: 0 | O139: 19 | P139: =LARGE(I136:I141,3) -> 19
B140: E | C140: 21 | D140: LEMARCHAND C. | E140: 10 | F140: E | G140: 20 | H140: ROBERT J. | I140: 17 | K140: 0 | L140: 10 | M140: =LARGE(E136:E141,4) -> 10 | N140: 0 | O140: 17 | P140: =LARGE(I136:I141,4) -> 18
B141: F | C141: 29 | D141: AUBRY CHOLLOT | E141: 9 | F141: F | G141: 30 | H141: CASTILLON C. | I141: 6 | K141: 0 | L141: 9 | M141: =LARGE(E136:E141,5) -> 9 | N141: 0 | O141: 6 | P141: =LARGE(I136:I141,5) -> 17
D142: 5 meilleures 1er JOUR | E142: =IF(K142>6,"FOR",IF(K142>1,"DIS",IF(COUNTBLANK(E136:E141)>0,L142,L142-M136))) -> 65 | H142: 5 meilleures 2ème JOUR | I142: =IF(N142>6,"FOR",IF(N142>1,"DIS",IF(COUNTBLANK(I136:I141)>0,O142,O142-P136))) -> 97 | K142: =SUM(K136:K141) -> 0 | L142: =SUM(L136:L141) -> 71 | N142: =SUM(N136:N141) -> 0 | O142: =SUM(O136:O141) -> 103
A144: =Prépa!C26 -> 16 | B144: =Prépa!D26 -> SAINTONGE 2 | E144: Rang | F144: =ABCDEF!$Z$26 -> 17 | H144: TOTAL | I144: =IF(OR(E151="FOR",I151="FOR"),"FOR",IF(OR(ISTEXT(E151),ISTEXT(I151)),"DIS",(E151)+(I151))) -> 151
B145: A | C145: 18 | D145: RAOUL J. | E145: 14 | F145: A | G145: 18 | H145: RAOUL J. | I145: 11 | K145: =IF(E145="For",10,IF(ISTEXT(E145),1,0)) -> 0 | L145: =IF(OR(ISNUMBER(E145),ISBLANK(E145)),E145,0) -> 14 | M145: =MIN(L145:L150) -> 4 | N145: =IF(I145="For",10,IF(ISTEXT(I145),1,0)) -> 0 | O145: =IF(OR(ISNUMBER(I145),ISBLANK(I145)),I145,0) -> 11 | P145: =MIN(O145:O150) -> 11
B146: B | C146: 27 | D146: HILL P. | E146: 4 | F146: B | G146: 32 | H146: HEMERY L. | I146: 11 | K146: 0 | L146: 4 | M146: =MAX(L145:L150) -> 17 | N146: 0 | O146: 11 | P146: =MAX(O145:O150) -> 20
B147: C | C147: 22 | D147: DESMAREST J. | E147: 7 | F147: C | G147: 18 | H147: ROUSSEAU J.J. | I147: 19 | K147: 0 | L147: 7 | M147: =SMALL(E145:E150,2) -> 7 | N147: 0 | O147: 19 | P147: =LARGE(I145:I150,2) -> 19
B148: D | C148: 16 | D148: LEMARCHAND M.. | E148: 17 | F148: D | G148: 18 | H148: SEGUY Ch. | I148: 18 | K148: 0 | L148: 17 | M148: =LARGE(E145:E150,3) -> 14 | N148: 0 | O148: 18 | P148: =LARGE(I145:I150,3) -> 19
B149: E | C149: 15 | D149: TROUILLON FARET M. | E149: 14 | F149: E | G149: 13 | H149: GOMBEAUD J. | I149: 20 | K149: 0 | L149: 14 | M149: =LARGE(E145:E150,4) -> 12 | N149: 0 | O149: 20 | P149: =LARGE(I145:I150,4) -> 18
B150: F | C150: 17 | D150: AUBRY G. | E150: 12 | F150: F | G150: 13 | H150: BELLVERT P. | I150: 19 | K150: 0 | L150: 12 | M150: =LARGE(E145:E150,5) -> 7 | N150: 0 | O150: 19 | P150: =LARGE(I145:I150,5) -> 11
D151: 5 meilleures 1er JOUR | E151: =IF(K151>6,"FOR",IF(K151>1,"DIS",IF(COUNTBLANK(E145:E150)>0,L151,L151-M145))) -> 64 | H151: 5 meilleures 2ème JOUR | I151: =IF(N151>6,"FOR",IF(N151>1,"DIS",IF(COUNTBLANK(I145:I150)>0,O151,O151-P145))) -> 87 | K151: =SUM(K145:K150) -> 0 | L151: =SUM(L145:L150) -> 68 | N151: =SUM(N145:N150) -> 0 | O151: =SUM(O145:O150) -> 98
A153: =Prépa!C27 -> 17 | B153: =Prépa!D27 -> LA ROCHELLE 1 | E153: Rang | F153: =ABCDEF!$Z$27 -> 18 | H153: TOTAL | I153: =IF(OR(E160="FOR",I160="FOR"),"FOR",IF(OR(ISTEXT(E160),ISTEXT(I160)),"DIS",(E160)+(I160))) -> 153
B154: A | C154: 19 | D154: MINIER A. | E154: 16 | F154: A | G154: 14 | H154: CASANAVE J.P. | I154: 15 | K154: =IF(E154="For",10,IF(ISTEXT(E154),1,0)) -> 0 | L154: =IF(OR(ISNUMBER(E154),ISBLANK(E154)),E154,0) -> 16 | M154: =MIN(L154:L159) -> 1 | N154: =IF(I154="For",10,IF(ISTEXT(I154),1,0)) -> 0 | O154: =IF(OR(ISNUMBER(I154),ISBLANK(I154)),I154,0) -> 15 | P154: =MIN(O154:O159) -> 8
B155: B | C155: 15 | D155: VACLE L. | E155: 19 | F155: B | G155: 17 | H155: SZKALANA F. | I155: 14 | K155: 0 | L155: 19 | M155: =MAX(L154:L159) -> 19 | N155: 0 | O155: 14 | P155: =MAX(O154:O159) -> 16
B156: C | C156: 31 | D156: AYRAULT D. | E156: 1 | F156: C | G156: 24 | H156: MICHAUD K. | I156: 16 | K156: 0 | L156: 1 | M156: =SMALL(E154:E159,2) -> 12 | N156: 0 | O156: 16 | P156: =LARGE(I154:I159,2) -> 15
B157: D | C157: 16 | D157: REY M. | E157: 17 | F157: D | G157: 28 | H157: ROY CONTANCIN M.P. | I157: 13 | K157: 0 | L157: 17 | M157: =LARGE(E154:E159,3) -> 17 | N157: 0 | O157: 13 | P157: =LARGE(I154:I159,3) -> 14
B158: E | C158: 14 | D158: MERCIER J.F. | E158: 19 | F158: E | G158: 14 | H158: MERCIER J.F. | I158: 12 | K158: 0 | L158: 19 | M158: =LARGE(E154:E159,4) -> 16 | N158: 0 | O158: 12 | P158: =LARGE(I154:I159,4) -> 13
B159: F | C159: 17 | D159: SARIO A. | E159: 12 | F159: F | G159: 20 | H159: REY J. | I159: 8 | K159: 0 | L159: 12 | M159: =LARGE(E154:E159,5) -> 12 | N159: 0 | O159: 8 | P159: =LARGE(I154:I159,5) -> 12
D160: 5 meilleures 1er JOUR | E160: =IF(K160>6,"FOR",IF(K160>1,"DIS",IF(COUNTBLANK(E154:E159)>0,L160,L160-M154))) -> 83 | H160: 5 meilleures 2ème JOUR | I160: =IF(N160>6,"FOR",IF(N160>1,"DIS",IF(COUNTBLANK(I154:I159)>0,O160,O160-P154))) -> 70 | K160: =SUM(K154:K159) -> 0 | L160: =SUM(L154:L159) -> 84 | N160: =SUM(N154:N159) -> 0 | O160: =SUM(O154:O159) -> 78
A162: =Prépa!C28 -> 18 | B162: =Prépa!D28 -> LA ROCHELLE 2 | E162: Rang | F162: =ABCDEF!$Z$28 -> 19 | H162: TOTAL | I162: =IF(OR(E169="FOR",I169="FOR"),"FOR",IF(OR(ISTEXT(E169),ISTEXT(I169)),"DIS",(E169)+(I169))) -> 133
B163: A | C163: 17 | D163: HENRARD X | E163: 8 | F163: A | G163: 33 | H163: PERCHERON J.C. | I163: 4 | K163: =IF(E163="For",10,IF(ISTEXT(E163),1,0)) -> 0 | L163: =IF(OR(ISNUMBER(E163),ISBLANK(E163)),E163,0) -> 8 | M163: =MIN(L163:L168) -> 6 | N163: =IF(I163="For",10,IF(ISTEXT(I163),1,0)) -> 0 | O163: =IF(OR(ISNUMBER(I163),ISBLANK(I163)),I163,0) -> 4 | P163: =MIN(O163:O168) -> 4
B164: B | C164: 15 | D164: CASANAVE J.P. | E164: 22 | F164: B | G164: 21 | H164: BLU O. | I164: 8 | K164: 0 | L164: 22 | M164: =MAX(L163:L168) -> 22 | N164: 0 | O164: 8 | P164: =MAX(O163:O168) -> 18
B165: C | C165: 18 | D165: DENIS C. | E165: 6 | F165: C | G165: 15 | H165: REY M.F. | I165: 16 | K165: 0 | L165: 6 | M165: =SMALL(E163:E168,2) -> 8 | N165: 0 | O165: 16 | P165: =LARGE(I163:I168,2) -> 18
B166: D | C166: 21 | D166: DAUCHEZ J.M. | E166: 10 | F166: D | G166: 19 | H166: TRAMICHECK H. | I166: 18 | K166: 0 | L166: 10 | M166: =LARGE(E163:E168,3) -> 10 | N166: 0 | O166: 18 | P166: =LARGE(I163:I168,3) -> 16
B167: E | C167: 22 | D167: SKORA M.C. | E167: 13 | F167: E | G167: 17 | H167: DESGARCEAUX V. | I167: 10 | K167: 0 | L167: 13 | M167: =LARGE(E163:E168,4) -> 10 | N167: 0 | O167: 10 | P167: =LARGE(I163:I168,4) -> 10
B168: F | C168: 19 | D168: BLU O. | E168: 10 | F168: F | G168: 14 | H168: BOMPOINT D. | I168: 18 | K168: 0 | L168: 10 | M168: =LARGE(E163:E168,5) -> 8 | N168: 0 | O168: 18 | P168: =LARGE(I163:I168,5) -> 8
D169: 5 meilleures 1er JOUR | E169: =IF(K169>6,"FOR",IF(K169>1,"DIS",IF(COUNTBLANK(E163:E168)>0,L169,L169-M163))) -> 63 | H169: 5 meilleures 2ème JOUR | I169: =IF(N169>6,"FOR",IF(N169>1,"DIS",IF(COUNTBLANK(I163:I168)>0,O169,O169-P163))) -> 70 | K169: =SUM(K163:K168) -> 0 | L169: =SUM(L163:L168) -> 69 | N169: =SUM(N163:N168) -> 0 | O169: =SUM(O163:O168) -> 74
A171: =Prépa!C29 -> 19 | B171: =Prépa!D29 -> LA ROCHELLE 3 | E171: Rang | F171: =ABCDEF!$Z$29 -> 20 | H171: TOTAL | I171: =IF(OR(E178="FOR",I178="FOR"),"FOR",IF(OR(ISTEXT(E178),ISTEXT(I178)),"DIS",(E178)+(I178))) -> 55
B172: A | C172: 13 | D172: GRANDON J.C. | E172: 16 | F172: A | K172: =IF(E172="For",10,IF(ISTEXT(E172),1,0)) -> 0 | L172: =IF(OR(ISNUMBER(E172),ISBLANK(E172)),E172,0) -> 16 | M172: =MIN(L172:L177) -> 4 | N172: =IF(I172="For",10,IF(ISTEXT(I172),1,0)) -> 0 | O172: =IF(OR(ISNUMBER(I172),ISBLANK(I172)),I172,0) -> 0 | P172: =MIN(O172:O177) -> 0
B173: B | C173: 18 | D173: SZKALANA F. | E173: 13 | F173: B | K173: 0 | L173: 13 | M173: =MAX(L172:L177) -> 16 | N173: 0 | O173: 0 | P173: =MAX(O172:O177) -> 0
B174: C | C174: 19 | D174: TRAMICHECK H. | E174: 10 | F174: C | K174: 0 | L174: 10 | M174: =SMALL(E172:E177,2) -> 4 | N174: 0 | O174: 0 | P174: =LARGE(I172:I177,2) -> 
B175: D | C175: 16 | D175: LACOUTURE F. | E175: 12 | F175: D | K175: 0 | L175: 12 | M175: =LARGE(E172:E177,3) -> 12 | N175: 0 | O175: 0 | P175: =LARGE(I172:I177,3) -> 
B176: E | C176: 19 | D176: REY J. | E176: 4 | F176: E | K176: 0 | L176: 4 | M176: =LARGE(E172:E177,4) -> 10 | N176: 0 | O176: 0 | P176: =LARGE(I172:I177,4) -> 
B177: F | C177: 27 | D177: ROY CONTANCIN M. P. | E177: 4 | F177: F | K177: 0 | L177: 4 | M177: =LARGE(E172:E177,5) -> 4 | N177: 0 | O177: 0 | P177: =LARGE(I172:I177,5) -> 
D178: 5 meilleures 1er JOUR | E178: =IF(K178>6,"FOR",IF(K178>1,"DIS",IF(COUNTBLANK(E172:E177)>0,L178,L178-M172))) -> 55 | H178: 5 meilleures 2ème JOUR | I178: =IF(N178>6,"FOR",IF(N178>1,"DIS",IF(COUNTBLANK(I172:I177)>0,O178,O178-P172))) -> 0 | K178: =SUM(K172:K177) -> 0 | L178: =SUM(L172:L177) -> 59 | N178: =SUM(N172:N177) -> 0 | O178: =SUM(O172:O177) -> 0
A180: =Prépa!C30 -> 20 | B180: =Prépa!D30 -> ROCHEFORT 1 | E180: Rang | F180: =ABCDEF!$Z$30 -> 21 | H180: TOTAL | I180: =IF(OR(E187="FOR",I187="FOR"),"FOR",IF(OR(ISTEXT(E187),ISTEXT(I187)),"DIS",(E187)+(I187))) -> 155
B181: A | C181: 25 | D181: TERMOTE T. | E181: 15 | G181: 17 | H181: BOULON S. | I181: 14 | K181: =IF(E181="For",10,IF(ISTEXT(E181),1,0)) -> 0 | L181: =IF(OR(ISNUMBER(E181),ISBLANK(E181)),E181,0) -> 15 | M181: =MIN(L181:L186) -> 8 | N181: =IF(I181="For",10,IF(ISTEXT(I181),1,0)) -> 0 | O181: =IF(OR(ISNUMBER(I181),ISBLANK(I181)),I181,0) -> 14 | P181: =MIN(O181:O186) -> 4
B182: B | C182: 15 | D182: ROIDI M. | E182: 19 | G182: 20 | H182: DAGAND F. | I182: 12 | K182: 0 | L182: 19 | M182: =MAX(L181:L186) -> 19 | N182: 0 | O182: 12 | P182: =MAX(O181:O186) -> 21
B183: C | C183: 19 | D183: GALINET J.F. | E183: 17 | G183: 27 | H183: FOGLIETTI I. | I183: 4 | K183: 0 | L183: 17 | M183: =SMALL(E181:E186,2) -> 14 | N183: 0 | O183: 4 | P183: =LARGE(I181:I186,2) -> 15
B184: D | C184: 22 | D184: VERGNE G. | E184: 8 | G184: 18 | H184: BRAGHIERI C. | I184: 15 | K184: 0 | L184: 8 | M184: =LARGE(E181:E186,3) -> 15 | N184: 0 | O184: 15 | P184: =LARGE(I181:I186,3) -> 14
B185: E | C185: 16 | D185: HILDENBRAND J. | E185: 15 | G185: 25 | H185: MAURISSAN P.L. | I185: 13 | K185: 0 | L185: 15 | M185: =LARGE(E181:E186,4) -> 15 | N185: 0 | O185: 13 | P185: =LARGE(I181:I186,4) -> 13
B186: F | C186: 16 | D186: LEPELLETIER T. | E186: 14 | G186: 14 | H186: GRELLIER J | I186: 21 | K186: 0 | L186: 14 | M186: =LARGE(E181:E186,5) -> 14 | N186: 0 | O186: 21 | P186: =LARGE(I181:I186,5) -> 12
D187: 5 meilleures 1er JOUR | E187: =IF(K187>6,"FOR",IF(K187>1,"DIS",IF(COUNTBLANK(E181:E186)>0,L187,L187-M181))) -> 80 | H187: 5 meilleures 2ème JOUR | I187: =IF(N187>6,"FOR",IF(N187>1,"DIS",IF(COUNTBLANK(I181:I186)>0,O187,O187-P181))) -> 75 | K187: =SUM(K181:K186) -> 0 | L187: =SUM(L181:L186) -> 88 | N187: =SUM(N181:N186) -> 0 | O187: =SUM(O181:O186) -> 79
A189: =Prépa!C31 -> 21 | B189: =Prépa!D31 -> ROCHEFORT 2 | E189: Rang | F189: =ABCDEF!$Z$31 -> 8 | H189: TOTAL | I189: =IF(OR(E196="FOR",I196="FOR"),"FOR",IF(OR(ISTEXT(E196),ISTEXT(I196)),"DIS",(E196)+(I196))) -> 164
B190: A | C190: 17 | D190: MAURISSAN P.T. | E190: 18 | F190: A | G190: 13 | H190: BALHADERE J. | I190: 13 | K190: =IF(E190="For",10,IF(ISTEXT(E190),1,0)) -> 0 | L190: =IF(OR(ISNUMBER(E190),ISBLANK(E190)),E190,0) -> 18 | M190: =MIN(L190:L195) -> 0 | N190: =IF(I190="For",10,IF(ISTEXT(I190),1,0)) -> 0 | O190: =IF(OR(ISNUMBER(I190),ISBLANK(I190)),I190,0) -> 13 | P190: =MIN(O190:O195) -> 9
B191: B | C191: 17 | D191: LEBUFFE J. | E191: 15 | F191: B | G191: 22 | H191: GOBATTO M. | I191: 9 | K191: 0 | L191: 15 | M191: =MAX(L190:L195) -> 22 | N191: 0 | O191: 9 | P191: =MAX(O190:O195) -> 20
B192: C | C192: 15 | D192: GALINET J. | E192: 13 | F192: C | G192: 15 | H192: VERGNE G. | I192: 17 | K192: 0 | L192: 13 | M192: =SMALL(E190:E195,2) -> 13 | N192: 0 | O192: 17 | P192: =LARGE(I190:I195,2) -> 17
B193: D | C193: 15 | D193: GRELLIER J. | E193: 22 | F193: D | G193: 15 | H193: TERMOTE T. | I193: 20 | K193: 0 | L193: 22 | M193: =LARGE(E190:E195,3) -> 15 | N193: 0 | O193: 20 | P193: =LARGE(I190:I195,3) -> 17
B194: E | C194: 20 | D194: BRAGHIERI C. | E194: 13 | F194: E | G194: 18 | H194: GALINET J.F. | I194: 17 | K194: 0 | L194: 13 | M194: =LARGE(E190:E195,4) -> 13 | N194: 0 | O194: 17 | P194: =LARGE(I190:I195,4) -> 16
B195: F | C195: 31 | D195: DUREY S. | E195: 0 | F195: F | G195: 28 | H195: LABBE L. | I195: 16 | K195: 0 | L195: 0 | M195: =LARGE(E190:E195,5) -> 13 | N195: 0 | O195: 16 | P195: =LARGE(I190:I195,5) -> 13
D196: 5 meilleures 1er JOUR | E196: =IF(K196>6,"FOR",IF(K196>1,"DIS",IF(COUNTBLANK(E190:E195)>0,L196,L196-M190))) -> 81 | H196: 5 meilleures 2ème JOUR | I196: =IF(N196>6,"FOR",IF(N196>1,"DIS",IF(COUNTBLANK(I190:I195)>0,O196,O196-P190))) -> 83 | K196: =SUM(K190:K195) -> 0 | L196: =SUM(L190:L195) -> 81 | N196: =SUM(N190:N195) -> 0 | O196: =SUM(O190:O195) -> 92
A198: =Prépa!C32 -> 22 | B198: =Prépa!D32 -> LA VALLADE 1 | E198: Rang | F198: =ABCDEF!$Z$32 -> 22 | H198: TOTAL | I198: =IF(OR(E205="FOR",I205="FOR"),"FOR",IF(OR(ISTEXT(E205),ISTEXT(I205)),"DIS",(E205)+(I205))) -> 67
B199: A | F199: A | G199: 25 | H199: CHAURIS B | I199: 15 | K199: =IF(E199="For",10,IF(ISTEXT(E199),1,0)) -> 0 | L199: =IF(OR(ISNUMBER(E199),ISBLANK(E199)),E199,0) -> 0 | M199: =MIN(L199:L204) -> 0 | N199: =IF(I199="For",10,IF(ISTEXT(I199),1,0)) -> 0 | O199: =IF(OR(ISNUMBER(I199),ISBLANK(I199)),I199,0) -> 15 | P199: =MIN(O199:O204) -> 7
B200: B | F200: B | G200: 18 | H200: DRAPIE L. | I200: 7 | K200: 0 | L200: 0 | M200: =MAX(L199:L204) -> 0 | N200: 0 | O200: 7 | P200: =MAX(O199:O204) -> 16
B201: C | F201: C | G201: 24 | H201: CHRYSOSTOME T. | I201: 8 | K201: 0 | L201: 0 | M201: =SMALL(E199:E204,2) ->  | N201: 0 | O201: 8 | P201: =LARGE(I199:I204,2) -> 15
B202: D | F202: D | G202: 18 | H202: LANNELONGUE J.Ph. | I202: 14 | K202: 0 | L202: 0 | M202: =LARGE(E199:E204,3) ->  | N202: 0 | O202: 14 | P202: =LARGE(I199:I204,3) -> 14
B203: E | F203: E | G203: 23 | H203: CAGIGAL DEL SOLAR S. | I203: 14 | K203: 0 | L203: 0 | M203: =LARGE(E199:E204,4) ->  | N203: 0 | O203: 14 | P203: =LARGE(I199:I204,4) -> 14
B204: F | F204: F | G204: 13 | H204: FAUP PELOT Ph. | I204: 16 | K204: 0 | L204: 0 | M204: =LARGE(E199:E204,5) ->  | N204: 0 | O204: 16 | P204: =LARGE(I199:I204,5) -> 8
D205: 5 meilleures 1er JOUR | E205: =IF(K205>6,"FOR",IF(K205>1,"DIS",IF(COUNTBLANK(E199:E204)>0,L205,L205-M199))) -> 0 | H205: 5 meilleures 2ème JOUR | I205: =IF(N205>6,"FOR",IF(N205>1,"DIS",IF(COUNTBLANK(I199:I204)>0,O205,O205-P199))) -> 67 | K205: =SUM(K199:K204) -> 0 | L205: =SUM(L199:L204) -> 0 | N205: =SUM(N199:N204) -> 0 | O205: =SUM(O199:O204) -> 74
A207: =Prépa!C33 -> 23 | B207: =Prépa!D33 -> SAINTONGE 3 | E207: Rang | F207: =ABCDEF!$Z$33 -> 23 | H207: TOTAL | I207: =IF(OR(E214="FOR",I214="FOR"),"FOR",IF(OR(ISTEXT(E214),ISTEXT(I214)),"DIS",(E214)+(I214))) -> 66
B208: A | F208: A | G208: 25 | H208: HILL P. | I208: 9 | K208: =IF(E208="For",10,IF(ISTEXT(E208),1,0)) -> 0 | L208: =IF(OR(ISNUMBER(E208),ISBLANK(E208)),E208,0) -> 0 | M208: =MIN(L208:L213) -> 0 | N208: =IF(I208="For",10,IF(ISTEXT(I208),1,0)) -> 0 | O208: =IF(OR(ISNUMBER(I208),ISBLANK(I208)),I208,0) -> 9 | P208: =MIN(O208:O213) -> 9
B209: B | F209: B | G209: 25 | H209: MATHIEU A. | I209: 13 | K209: 0 | L209: 0 | M209: =MAX(L208:L213) -> 0 | N209: 0 | O209: 13 | P209: =MAX(O208:O213) -> 20
B210: C | F210: C | G210: 23 | H210: MERCIER C. | I210: 12 | K210: 0 | L210: 0 | M210: =SMALL(E208:E213,2) ->  | N210: 0 | O210: 12 | P210: =LARGE(I208:I213,2) -> 13
B211: D | F211: D | G211: 22 | H211: LEMARCHAND C. | I211: 11 | K211: 0 | L211: 0 | M211: =LARGE(E208:E213,3) ->  | N211: 0 | O211: 11 | P211: =LARGE(I208:I213,3) -> 12
B212: E | F212: E | G212: 21 | H212: SEGUY A. | I212: 20 | K212: 0 | L212: 0 | M212: =LARGE(E208:E213,4) ->  | N212: 0 | O212: 20 | P212: =LARGE(I208:I213,4) -> 11
B213: F | F213: F | G213: 24 | H213: GUDIN CASTILLON C. | I213: 10 | K213: 0 | L213: 0 | M213: =LARGE(E208:E213,5) ->  | N213: 0 | O213: 10 | P213: =LARGE(I208:I213,5) -> 10
D214: 5 meilleures 1er JOUR | E214: =IF(K214>6,"FOR",IF(K214>1,"DIS",IF(COUNTBLANK(E208:E213)>0,L214,L214-M208))) -> 0 | H214: 5 meilleures 2ème JOUR | I214: =IF(N214>6,"FOR",IF(N214>1,"DIS",IF(COUNTBLANK(I208:I213)>0,O214,O214-P208))) -> 66 | K214: =SUM(K208:K213) -> 0 | L214: =SUM(L208:L213) -> 0 | N214: =SUM(N208:N213) -> 0 | O214: =SUM(O208:O213) -> 75
A216: =Prépa!C34 -> 24 | B216: =Prépa!D34 -> 0 | E216: Rang | F216: =ABCDEF!$Z$34 -> 24 | H216: TOTAL | I216: =IF(OR(E223="FOR",I223="FOR"),"FOR",IF(OR(ISTEXT(E223),ISTEXT(I223)),"DIS",(E223)+(I223))) -> 0
B217: A | F217: A | K217: =IF(E217="For",10,IF(ISTEXT(E217),1,0)) -> 0 | L217: =IF(OR(ISNUMBER(E217),ISBLANK(E217)),E217,0) -> 0 | M217: =MIN(L217:L222) -> 0 | N217: =IF(I217="For",10,IF(ISTEXT(I217),1,0)) -> 0 | O217: =IF(OR(ISNUMBER(I217),ISBLANK(I217)),I217,0) -> 0 | P217: =MIN(O217:O222) -> 0
B218: B | F218: B | K218: 0 | L218: 0 | M218: =MAX(L217:L222) -> 0 | N218: 0 | O218: 0 | P218: =MAX(O217:O222) -> 0
B219: C | F219: C | K219: 0 | L219: 0 | M219: =SMALL(E217:E222,2) ->  | N219: 0 | O219: 0 | P219: =LARGE(I217:I222,2) -> 
B220: D | F220: D | K220: 0 | L220: 0 | M220: =LARGE(E217:E222,3) ->  | N220: 0 | O220: 0 | P220: =LARGE(I217:I222,3) -> 
B221: E | F221: E | K221: 0 | L221: 0 | M221: =LARGE(E217:E222,4) ->  | N221: 0 | O221: 0 | P221: =LARGE(I217:I222,4) -> 
B222: F | F222: F | K222: 0 | L222: 0 | M222: =LARGE(E217:E222,5) ->  | N222: 0 | O222: 0 | P222: =LARGE(I217:I222,5) -> 
... 1 more rows

Sheet ABCDEF
C1: =Prépa!D2 -> championnat départemental par équipes 2011 | Z1: =34-COUNT(B11:B34) -> 33
C3: =Prépa!D4 -> 1er Tour Royan 10 avril 2011
D5: =Prépa!D6 -> 2ème Tour Saintes 9 octobre 2011
C7: Classement
C10: A | D10: B | E10: C | F10: D | G10: E | H10: F | I10: A | J10: B | K10: C | L10: D | M10: E | N10: F | O10: Tour 1 | P10: Tour 2 | Q10: Total | R10: Départages | Y10: A | Z10: B | AA10: C | AB10: D | AC10: E | AD10: F | AE10: A | AF10: B | AG10: C | AH10: D | AI10: E | AJ10: F | AK10: Tour 3 | AL10: Tour 4 | AM10: Total | AN10: Départages
A11: 1 | B11: =Res!B9 -> LA JARNE 1 | C11: =Res!E10 -> 14 | D11: =Res!E11 -> 14 | E11: =Res!E12 -> 14 | F11: =Res!E13 -> 24 | G11: =Res!E14 -> 18 | H11: =Res!E15 -> 20 | I11: =Res!I10 -> 23 | J11: =Res!I11 -> 9 | K11: =Res!I12 -> 19 | L11: =Res!I13 -> 13 | M11: =Res!I14 -> 21 | N11: =Res!I15 -> 24 | O11: =Res!E16 -> 90 | P11: =Res!I16 -> 100 | Q11: =IF(OR(O11="FOR",P11="FOR"),1,IF(OR(ISTEXT(O11),ISTEXT(P11)),2,(O11)+(P11))) -> 190 | R11: =Res!$M$10+Res!$P$10 -> 23 | S11: =Res!$M$11+Res!$P$11 -> 48 | T11: =Res!$M$12+Res!$P$12 -> 37 | U11: =Res!$M$13+Res!$P$13 -> 39 | V11: =Res!$M$14+Res!$P$14 -> 33 | W11: 1 | X11: =Res!X18 -> 0 | Y11: =Res!AA19 -> 0 | Z11: 1 | AA11: ROYAN 2 | AB11: 0 | AC11: =Res!AA14 -> 0 | AD11: =Res!AA15 -> 0 | AE11: =Res!AE10 -> 0 | AF11: =Res!AE11 -> 0 | AG11: =Res!AE12 -> 0 | AH11: =Res!AE13 -> 0 | AI11: =Res!AE14 -> 0 | AJ11: =Res!AE15 -> 0 | AK11: =Res!AA16 -> 0 | AL11: =Res!AE16 -> 0 | AM11: =IF(OR(AK11="FOR",AL11="FOR"),1,IF(OR(ISTEXT(AK11),ISTEXT(AL11)),2,(AK11)+(AL11))) -> 0 | AN11: =Res!$M$10+Res!$P$10 -> 23 | AO11: =Res!$M$11+Res!$P$11 -> 48 | AP11: =Res!$M$12+Res!$P$12 -> 37 | AQ11: =Res!$M$13+Res!$P$13 -> 39 | AR11: =Res!$M$14+Res!$P$14 -> 33
A12: 2 | B12: =Res!B54 -> MONTENDRE 1 | C12: =Res!E55 -> 17 | D12: =Res!E56 -> 14 | E12: =Res!E57 -> 21 | F12: =Res!E58 -> 19 | G12: =Res!E59 -> 12 | H12: =Res!E60 -> 14 | I12: =Res!I55 -> 23 | J12: =Res!I56 -> 9 | K12: =Res!I57 -> 14 | L12: =Res!I58 -> 18 | M12: =Res!I59 -> 17 | N12: =Res!I60 -> 22 | O12: =Res!E61 -> 85 | P12: =Res!I61 -> 94 | Q12: 179 | R12: =Res!M55+Res!P55 -> 21 | S12: =Res!M56+Res!P56 -> 44 | T12: =Res!M57+Res!P57 -> 36 | U12: =Res!M58+Res!P58 -> 35 | V12: =Res!$M$59+Res!$P$59 -> 31 | W12: 6 | X12: =Res!X72 -> 0 | Y12: =Res!AA73 -> 0 | Z12: 2 | AA12: LA JARNE 1 | AB12: 0 | AC12: =Res!AA23 -> 0 | AD12: =Res!AA24 -> 0 | AE12: =Res!AE19 -> 0 | AF12: =Res!AE20 -> 0 | AG12: =Res!AE21 -> 0 | AH12: =Res!AE22 -> 0 | AI12: =Res!AE23 -> 0 | AJ12: =Res!AE24 -> 0 | AK12: =Res!AA25 -> 0 | AL12: =Res!AE25 -> 0 | AM12: 0 | AN12: =Res!AI19+Res!AL19 -> 0 | AO12: =Res!AI20+Res!AL20 -> 0 | AP12: =Res!AI21+Res!AL21 -> 0 | AQ12: =Res!AI22+Res!AL22 -> 0 | AR12: =Res!$M$23+Res!$P$23 -> 27
A13: 3 | B13: =Res!B18 -> LA JARNE 2 | C13: =Res!E19 -> 11 | D13: =Res!E20 -> 19 | E13: =Res!E21 -> 6 | F13: =Res!E22 -> 5 | G13: =Res!E23 -> 11 | H13: =Res!E24 -> 18 | I13: =Res!I19 -> 25 | J13: =Res!I20 -> 24 | K13: =Res!I21 -> 16 | L13: =Res!I22 -> 18 | M13: =Res!I23 -> 9 | N13: =Res!I24 -> 16 | O13: =Res!E25 -> 65 | P13: =Res!I25 -> 99 | Q13: 164 | R13: =Res!M19+Res!P19 -> 14 | S13: =Res!M20+Res!P20 -> 44 | T13: =Res!M21+Res!P21 -> 30 | U13: =Res!M22+Res!P22 -> 29 | V13: =Res!$M$23+Res!$P$23 -> 27 | W13: 2 | X13: =Res!X45 -> 0 | Y13: =Res!AA46 -> 0 | Z13: 3 | AA13: MONTENDRE 1 | AB13: 0 | AC13: =Res!AA32 -> 0 | AD13: =Res!AA33 -> 0 | AE13: =Res!AE28 -> 0 | AF13: =Res!AE29 -> 0 | AG13: =Res!AE30 -> 0 | AH13: =Res!AE31 -> 0 | AI13: =Res!AE32 -> 0 | AJ13: =Res!AE33 -> 0 | AK13: =Res!AA34 -> 0 | AL13: =Res!AE34 -> 0 | AM13: 0 | AN13: =Res!AI28+Res!AL28 -> 0 | AO13: =Res!AI29+Res!AL29 -> 0 | AP13: =Res!AI30+Res!AL30 -> 0 | AQ13: =Res!AI31+Res!AL31 -> 0 | AR13: =Res!$M$32+Res!$P$32 -> 23
A14: 4 | B14: ROCHEFORT 2 | C14: =Res!E190 -> 18 | D14: =Res!E191 -> 15 | E14: =Res!E192 -> 13 | F14: =Res!E193 -> 22 | G14: =Res!E194 -> 13 | H14: =Res!E195 -> 0 | I14: =Res!I190 -> 13 | J14: =Res!I191 -> 9 | K14: =Res!I192 -> 17 | L14: =Res!I193 -> 20 | M14: =Res!I194 -> 17 | N14: =Res!I195 -> 16 | O14: =Res!E196 -> 81 | P14: =Res!I196 -> 83 | Q14: 164 | R14: =Res!M190+Res!P190 -> 9 | S14: =Res!M191+Res!P191 -> 42 | T14: =Res!M192+Res!P192 -> 30 | U14: =Res!M193+Res!P193 -> 32 | V14: =Res!M194+Res!P194 -> 29 | W14: =Res!M195+Res!P195 -> 26 | Y14: 21 | Z14: 4 | AA14: ROYAN 3 | AB14: 0 | AC14: =Res!AA41 -> 0 | AD14: =Res!AA42 -> 0 | AE14: =Res!AE37 -> 0 | AF14: =Res!AE38 -> 0 | AG14: =Res!AE39 -> 0 | AH14: =Res!AE40 -> 0 | AI14: =Res!AE41 -> 0 | AJ14: =Res!AE42 -> 0 | AK14: =Res!AA43 -> 0 | AL14: =Res!AE43 -> 0 | AM14: 0 | AN14: =Res!AI37+Res!AL37 -> 0 | AO14: =Res!AI38+Res!AL38 -> 0 | AP14: =Res!AI39+Res!AL39 -> 0 | AQ14: =Res!AI40+Res!AL40 -> 0 | AR14: =Res!$M$41+Res!$P$41 -> 
A15: 5 | B15: =Res!B126 -> ROYAN 3 | C15: =Res!E127 -> 22 | D15: =Res!E128 -> 19 | E15: =Res!E129 -> 14 | F15: =Res!E130 -> 12 | G15: =Res!E131 -> 18 | H15: =Res!E132 -> 10 | I15: =Res!I127 -> 20 | J15: =Res!I128 -> 7 | K15: =Res!I129 -> 14 | L15: =Res!I130 -> 22 | M15: =Res!I131 -> 15 | N15: =Res!I132 -> 4 | O15: =Res!E133 -> 85 | P15: =Res!I133 -> 78 | Q15: 163 | R15: =Res!M127+Res!P127 -> 14 | S15: =Res!M128+Res!P128 -> 44 | T15: =Res!M129+Res!P129 -> 32 | U15: =Res!M130+Res!P130 -> 33 | V15: =Res!$M$131+Res!$P$131 -> 28 | W15: 14 | X15: =Res!X171 -> 0 | Y15: =Res!AA172 -> 0 | Z15: 5 | AA15: ROYAN 1 | AB15: 0 | AC15: =Res!AA50 -> 0 | AD15: =Res!AA51 -> 0 | AE15: =Res!AE46 -> 0 | AF15: =Res!AE47 -> 0 | AG15: =Res!AE48 -> 0 | AH15: =Res!AE49 -> 0 | AI15: =Res!AE50 -> 0 | AJ15: =Res!AE51 -> 0 | AK15: =Res!AA52 -> 0 | AL15: =Res!AE52 -> 0 | AM15: 0 | AN15: =Res!AI46+Res!AL46 -> 0 | AO15: =Res!AI47+Res!AL47 -> 0 | AP15: =Res!AI48+Res!AL48 -> 0 | AQ15: =Res!AI49+Res!AL49 -> 0 | AR15: =Res!$M$50+Res!$P$50 -> 
A16: 6 | B16: =Res!B135 -> SAINTONGE 1 | C16: =Res!E136 -> 14 | D16: =Res!E137 -> 14 | E16: =Res!E138 -> 18 | F16: =Res!E139 -> 6 | G16: =Res!E140 -> 10 | H16: =Res!E141 -> 9 | I16: =Res!I136 -> 22 | J16: =Res!I137 -> 18 | K16: =Res!I138 -> 21 | L16: =Res!I139 -> 19 | M16: =Res!I140 -> 17 | N16: =Res!I141 -> 6 | O16: =Res!E142 -> 65 | P16: =Res!I142 -> 97 | Q16: 162 | R16: =Res!M136+Res!P136 -> 12 | S16: =Res!M137+Res!P137 -> 40 | T16: =Res!M138+Res!P138 -> 30 | U16: =Res!M139+Res!P139 -> 33 | V16: =Res!M140+Res!P140 -> 28 | W16: 15 | X16: =Res!X117 -> 0 | Y16: =Res!AA118 -> 0 | Z16: 6 | AA16: LA ROCHELLE 1 | AB16: 0 | AC16: =Res!AA59 -> 0 | AD16: =Res!AA60 -> 0 | AE16: =Res!AE55 -> 0 | AF16: =Res!AE56 -> 0 | AG16: =Res!AE57 -> 0 | AH16: =Res!AE58 -> 0 | AI16: =Res!AE59 -> 0 | AJ16: =Res!AE60 -> 0 | AK16: =Res!AA61 -> 0 | AL16: =Res!AE61 -> 0 | AM16: 0 | AN16: =Res!AI55+Res!AL55 -> 0 | AO16: =Res!AI56+Res!AL56 -> 0 | AP16: =Res!AI57+Res!AL57 -> 0 | AQ16: =Res!AI58+Res!AL58 -> 0 | AR16: =Res!$M$59+Res!$P$59 -> 31
A17: 7 | B17: =Res!B180 -> ROCHEFORT 1 | C17: =Res!E181 -> 15 | D17: =Res!E182 -> 19 | E17: =Res!E183 -> 17 | F17: =Res!E184 -> 8 | G17: =Res!E185 -> 15 | H17: =Res!E186 -> 14 | I17: =Res!I181 -> 14 | J17: =Res!I182 -> 12 | K17: =Res!I183 -> 4 | L17: =Res!I184 -> 15 | M17: =Res!I185 -> 13 | N17: =Res!I186 -> 21 | O17: =Res!E187 -> 80 | P17: =Res!I187 -> 75 | Q17: 155 | R17: =Res!M181+Res!P181 -> 12 | S17: =Res!M182+Res!P182 -> 40 | T17: =Res!M183+Res!P183 -> 29 | U17: =Res!M184+Res!P184 -> 29 | V17: =Res!M185+Res!P185 -> 28 | W17: 20 | X17: =Res!X180 -> 0 | Y17: =Res!AA181 -> 0 | Z17: 7 | AA17: OLERON 1 | AB17: 0 | AC17: =Res!AA68 -> 0 | AD17: =Res!AA69 -> 0 | AE17: =Res!AE64 -> 0 | AF17: =Res!AE65 -> 0 | AG17: =Res!AE66 -> 0 | AH17: =Res!AE67 -> 0 | AI17: =Res!AE68 -> 0 | AJ17: =Res!AE69 -> 0 | AK17: =Res!AA70 -> 0 | AL17: =Res!AE70 -> 0 | AM17: 0 | AN17: =Res!AI64+Res!AL64 -> 0 | AO17: =Res!AI65+Res!AL65 -> 0 | AP17: =Res!AI66+Res!AL66 -> 0 | AQ17: =Res!AI67+Res!AL67 -> 0 | AR17: =Res!$M$68+Res!$P$68 -> 22
A18: 8 | B18: =Res!B153 -> LA ROCHELLE 1 | C18: =Res!E154 -> 16 | D18: =Res!E155 -> 19 | E18: =Res!E156 -> 1 | F18: =Res!E157 -> 17 | G18: =Res!E158 -> 19 | H18: =Res!E159 -> 12 | I18: =Res!I154 -> 15 | J18: =Res!I155 -> 14 | K18: =Res!I156 -> 16 | L18: =Res!I157 -> 13 | M18: =Res!I158 -> 12 | N18: =Res!I159 -> 8 | O18: =Res!E160 -> 83 | P18: =Res!I160 -> 70 | Q18: 153 | R18: =Res!M154+Res!P154 -> 9 | S18: =Res!M155+Res!P155 -> 35 | T18: =Res!M156+Res!P156 -> 27 | U18: =Res!M157+Res!P157 -> 31 | V18: =Res!M158+Res!P158 -> 29 | W18: 17 | X18: =Res!X153 -> 0 | Y18: =Res!AA154 -> 0 | Z18: 9 | AA18: ROCHEFORT 2 | AB18: 21 | AC18: =Res!AA77 -> 0 | AD18: =Res!AA78 -> 0 | AE18: =Res!AE73 -> 0 | AF18: =Res!AE74 -> 0 | AG18: =Res!AE75 -> 0 | AH18: =Res!AE76 -> 0 | AI18: =Res!AE77 -> 0 | AJ18: =Res!AE78 -> 0 | AK18: =Res!AA79 -> 0 | AL18: =Res!AE79 -> 0 | AM18: 0 | AN18: =Res!AI73+Res!AL73 -> 0 | AO18: =Res!AI74+Res!AL74 -> 0 | AP18: =Res!AI75+Res!AL75 -> 0 | AQ18: =Res!AI76+Res!AL76 -> 0 | AR18: =Res!$M$77+Res!$P$77 -> 9
A19: 9 | B19: =Res!B144 -> SAINTONGE 2 | C19: =Res!E145 -> 14 | D19: =Res!E146 -> 4 | E19: =Res!E147 -> 7 | F19: =Res!E148 -> 17 | G19: =Res!E149 -> 14 | H19: =Res!E150 -> 12 | I19: =Res!I145 -> 11 | J19: =Res!I146 -> 11 | K19: =Res!I147 -> 19 | L19: =Res!I148 -> 18 | M19: =Res!I149 -> 20 | N19: =Res!I150 -> 19 | O19: =Res!E151 -> 64 | P19: =Res!I151 -> 87 | Q19: 151 | R19: =Res!M145+Res!P145 -> 15 | S19: =Res!M146+Res!P146 -> 37 | T19: =Res!M147+Res!P147 -> 26 | U19: =Res!M148+Res!P148 -> 33 | V19: =Res!M149+Res!P149 -> 30 | W19: 16 | X19: =Res!X108 -> 0 | Y19: =Res!AA109 -> 0 | Z19: 10 | AA19: ROCHEFORT 1 | AB19: 0 | AC19: =Res!AA86 -> 0 | AD19: =Res!AA87 -> 0 | AE19: =Res!AE82 -> 0 | AF19: =Res!AE83 -> 0 | AG19: =Res!AE84 -> 0 | AH19: =Res!AE85 -> 0 | AI19: =Res!AE86 -> 0 | AJ19: =Res!AE87 -> 0 | AK19: =Res!AA88 -> 0 | AL19: =Res!AE88 -> 0 | AM19: 0 | AN19: =Res!AI82+Res!AL82 -> 0 | AO19: =Res!AI83+Res!AL83 -> 0 | AP19: =Res!AI84+Res!AL84 -> 0 | AQ19: =Res!AI85+Res!AL85 -> 0 | AR19: =Res!$M$86+Res!$P$86 -> 24
A20: 10 | B20: =Res!B81 -> OLERON 1 | C20: =Res!E82 -> 19 | D20: =Res!E83 -> 20 | E20: =Res!E84 -> 10 | F20: =Res!E85 -> 13 | G20: =Res!E86 -> 17 | H20: =Res!E87 -> 13 | I20: =Res!I82 -> 13 | J20: =Res!I83 -> 11 | K20: =Res!I84 -> 17 | L20: =Res!I85 -> 10 | M20: =Res!I86 -> 11 | N20: =Res!I87 -> 15 | O20: =Res!E88 -> 82 | P20: =Res!I88 -> 67 | Q20: 149 | R20: =Res!M82+Res!P82 -> 20 | S20: =Res!M83+Res!P83 -> 37 | T20: =Res!M84+Res!P84 -> 28 | U20: =Res!M85+Res!P85 -> 30 | V20: =Res!$M$86+Res!$P$86 -> 24 | W20: 9 | X20: =Res!X90 -> 0 | Y20: =Res!AA91 -> 0 | Z20: 11 | AA20: LA PALMYRE 1 | AB20: 0 | AC20: =Res!AA95 -> 0 | AD20: =Res!AA96 -> 0 | AE20: =Res!AE91 -> 0 | AF20: =Res!AE92 -> 0 | AG20: =Res!AE93 -> 0 | AH20: =Res!AE94 -> 0 | AI20: =Res!AE95 -> 0 | AJ20: =Res!AE96 -> 0 | AK20: =Res!AA97 -> 0 | AL20: =Res!AE97 -> 0 | AM20: 0 | AN20: =Res!AI91+Res!AL91 -> 0 | AO20: =Res!AI92+Res!AL92 -> 0 | AP20: =Res!AI93+Res!AL93 -> 0 | AQ20: =Res!AI94+Res!AL94 -> 0 | AR20: =Res!$M$95+Res!$P$95 -> 24
A21: 11 | B21: =Res!B27 -> LA PALMYRE 1 | C21: =Res!E28 -> 17 | D21: =Res!E29 -> 21 | E21: =Res!E30 -> 12 | F21: =Res!E31 -> 8 | G21: =Res!E32 -> 12 | H21: =Res!E33 -> 9 | I21: =Res!I28 -> 21 | J21: =Res!I29 -> 7 | K21: =Res!I30 -> 16 | L21: =Res!I31 -> 21 | M21: =Res!I32 -> 7 | N21: =Res!I33 -> 11 | O21: =Res!E34 -> 71 | P21: =Res!I34 -> 76 | Q21: 147 | R21: =Res!M28+Res!P28 -> 15 | S21: =Res!M29+Res!P29 -> 42 | T21: =Res!M30+Res!P30 -> 30 | U21: =Res!M31+Res!P31 -> 28 | V21: =Res!$M$32+Res!$P$32 -> 23 | W21: 3 | X21: =Res!X54 -> 0 | Y21: =Res!AA55 -> 0 | Z21: 12 | AA21: OLERON 2 | AB21: 0 | AC21: =Res!AA104 -> 0 | AD21: =Res!AA105 -> 0 | AE21: =Res!AE100 -> 0 | AF21: =Res!AE101 -> 0 | AG21: =Res!AE102 -> 0 | AH21: =Res!AE103 -> 0 | AI21: =Res!AE104 -> 0 | AJ21: =Res!AE105 -> 0 | AK21: =Res!AA106 -> 0 | AL21: =Res!AE106 -> 0 | AM21: 0 | AN21: =Res!AI100+Res!AL100 -> 0 | AO21: =Res!AI101+Res!AL101 -> 0 | AP21: =Res!AI102+Res!AL102 -> 0 | AQ21: =Res!AI103+Res!AL103 -> 0 | AR21: =Res!$M$104+Res!$P$104 -> 17
A22: 12 | B22: =Res!B90 -> OLERON 2 | C22: =Res!E91 -> 14 | D22: =Res!E92 -> 11 | E22: =Res!E93 -> 5 | F22: =Res!E94 -> 22 | G22: =Res!E95 -> 13 | H22: =Res!E96 -> 8 | I22: =Res!I91 -> 5 | J22: =Res!I92 -> 14 | K22: =Res!I93 -> 14 | L22: =Res!I94 -> 9 | M22: =Res!I95 -> 18 | N22: =Res!I96 -> 13 | O22: =Res!E97 -> 68 | P22: =Res!I97 -> 68 | Q22: 136 | R22: =Res!M91+Res!P91 -> 10 | S22: =Res!M92+Res!P92 -> 40 | T22: =Res!M93+Res!P93 -> 22 | U22: =Res!M94+Res!P94 -> 27 | V22: =Res!$M$95+Res!$P$95 -> 24 | W22: 10 | X22: =Res!X63 -> 0 | Y22: =Res!AA64 -> 0 | Z22: 13 | AA22: SAINTONGE 1 | AB22: 0 | AC22: =Res!AA113 -> 0 | AD22: =Res!AA114 -> 0 | AE22: =Res!AE109 -> 0 | AF22: =Res!AE110 -> 0 | AG22: =Res!AE111 -> 0 | AH22: =Res!AE112 -> 0 | AI22: =Res!AE113 -> 0 | AJ22: =Res!AE114 -> 0 | AK22: =Res!AA115 -> 0 | AL22: =Res!AE115 -> 0 | AM22: 0 | AN22: =Res!AI109+Res!AL109 -> 0 | AO22: =Res!AI110+Res!AL110 -> 0 | AP22: =Res!AI111+Res!AL111 -> 0 | AQ22: =Res!AI112+Res!AL112 -> 0 | AR22: =Res!$M$113+Res!$P$113 -> 
A23: 13 | B23: =Res!B162 -> LA ROCHELLE 2 | C23: =Res!E163 -> 8 | D23: =Res!E164 -> 22 | E23: =Res!E165 -> 6 | F23: =Res!E166 -> 10 | G23: =Res!E167 -> 13 | H23: =Res!E168 -> 10 | I23: =Res!I163 -> 4 | J23: =Res!I164 -> 8 | K23: =Res!I165 -> 16 | L23: =Res!I166 -> 18 | M23: =Res!I167 -> 10 | N23: =Res!I168 -> 18 | O23: =Res!E169 -> 63 | P23: =Res!I169 -> 70 | Q23: 133 | R23: =Res!M163+Res!P163 -> 10 | S23: =Res!M164+Res!P164 -> 40 | T23: =Res!M165+Res!P165 -> 26 | U23: =Res!M166+Res!P166 -> 26 | V23: =Res!M167+Res!P167 -> 20 | W23: 18 | X23: =Res!X9 -> 0 | Y23: =Res!AA10 -> 0 | Z23: 14 | AA23: LA JARNE 2 | AB23: 0 | AC23: =Res!AA122 -> 0 | AD23: =Res!AA123 -> 0 | AE23: =Res!AE118 -> 0 | AF23: =Res!AE119 -> 0 | AG23: =Res!AE120 -> 0 | AH23: =Res!AE121 -> 0 | AI23: =Res!AE122 -> 0 | AJ23: =Res!AE123 -> 0 | AK23: =Res!AA124 -> 0 | AL23: =Res!AE124 -> 0 | AM23: 0 | AN23: =Res!AI118+Res!AL118 -> 0 | AO23: =Res!AI119+Res!AL119 -> 0 | AP23: =Res!AI120+Res!AL120 -> 0 | AQ23: =Res!AI121+Res!AL121 -> 0 | AR23: =Res!$M$122+Res!$P$122 -> 
A24: 14 | B24: =Res!B63 -> MONTENDRE 2 | C24: =Res!E64 -> 15 | D24: =Res!E65 -> 8 | E24: =Res!E66 -> 10 | F24: =Res!E67 -> 8 | G24: =Res!E68 -> 12 | H24: =Res!E69 -> 7 | I24: =Res!I64 -> 21 | J24: =Res!I65 -> 14 | K24: =Res!I66 -> 18 | L24: =Res!I67 -> 6 | M24: =Res!I68 -> 11 | N24: =Res!I69 -> 14 | O24: =Res!E70 -> 53 | P24: =Res!I70 -> 78 | Q24: 131 | R24: =Res!M64+Res!P64 -> 13 | S24: =Res!M65+Res!P65 -> 36 | T24: =Res!M66+Res!P66 -> 26 | U24: =Res!M67+Res!P67 -> 24 | V24: =Res!$M$68+Res!$P$68 -> 22 | W24: 7 | X24: =Res!X81 -> 0 | Y24: =Res!AA82 -> 0 | Z24: 15 | AA24: SAINTONGE 2 | AB24: 0 | AC24: =Res!AA131 -> 0 | AD24: =Res!AA132 -> 0 | AE24: =Res!AE127 -> 0 | AF24: =Res!AE128 -> 0 | AG24: =Res!AE129 -> 0 | AH24: =Res!AE130 -> 0 | AI24: =Res!AE131 -> 0 | AJ24: =Res!AE132 -> 0 | AK24: =Res!AA133 -> 0 | AL24: =Res!AE133 -> 0 | AM24: 0 | AN24: =Res!AI127+Res!AL127 -> 0 | AO24: =Res!AI128+Res!AL128 -> 0 | AP24: =Res!AI129+Res!AL129 -> 0 | AQ24: =Res!AI130+Res!AL130 -> 0 | AR24: =Res!$M$131+Res!$P$131 -> 28
A25: 15 | B25: =Res!B99 -> OLERON 3 | C25: =Res!E100 -> 13 | D25: =Res!E101 -> 9 | E25: =Res!E102 -> 8 | F25: =Res!E103 -> 9 | G25: =Res!E104 -> 4 | H25: =Res!E105 -> 17 | I25: =Res!I100 -> 11 | J25: =Res!I101 -> 8 | K25: =Res!I102 -> 4 | L25: =Res!I103 -> 7 | M25: =Res!I104 -> 10 | N25: =Res!I105 -> 10 | O25: =Res!E106 -> 56 | P25: =Res!I106 -> 46 | Q25: 102 | R25: =Res!M100+Res!P100 -> 8 | S25: =Res!M101+Res!P101 -> 28 | T25: =Res!M102+Res!P102 -> 18 | U25: =Res!M103+Res!P103 -> 19 | V25: =Res!$M$104+Res!$P$104 -> 17 | W25: 11 | X25: =Res!X126 -> 0 | Y25: =Res!AA127 -> 0 | Z25: 16 | AA25: LA ROCHELLE 2 | AB25: 0 | AC25: =Res!AA140 -> 0 | AD25: =Res!AA141 -> 0 | AE25: =Res!AE136 -> 0 | AF25: =Res!AE137 -> 0 | AG25: =Res!AE138 -> 0 | AH25: =Res!AE139 -> 0 | AI25: =Res!AE140 -> 0 | AJ25: =Res!AE141 -> 0 | AK25: =Res!AA142 -> 0 | AL25: =Res!AE142 -> 0 | AM25: 0 | AN25: =Res!AI136+Res!AL136 -> 0 | AO25: =Res!AI137+Res!AL137 -> 0 | AP25: =Res!AI138+Res!AL138 -> 0 | AQ25: =Res!AI139+Res!AL139 -> 0 | AR25: =Res!AI140+Res!AL140 -> 0
A26: 16 | B26: =Res!B117 -> ROYAN 2 | C26: =Res!E118 -> 26 | D26: =Res!E119 -> 23 | E26: =Res!E120 -> 19 | F26: =Res!E121 -> 14 | G26: =Res!E122 -> 12 | H26: =Res!E123 -> 9 | I26: =Res!I118 -> 0 | J26: =Res!I119 -> 0 | K26: =Res!I120 -> 0 | L26: =Res!I121 -> 0 | M26: =Res!I122 -> 0 | N26: =Res!I123 -> 0 | O26: =Res!E124 -> 94 | P26: =Res!I124 -> 0 | Q26: 94 | R26: =Res!M118+Res!P118 -> 9 | S26: =Res!M119+Res!P119 -> 26 | T26: =Res!M120+Res!P120 ->  | U26: =Res!M121+Res!P121 ->  | V26: =Res!$M$122+Res!$P$122 ->  | W26: 13 | X26: =Res!X135 -> 0 | Y26: =Res!AA136 -> 0 | Z26: 17 | AA26: LA PALMYRE 3 | AB26: 0 | AC26: =Res!AA149 -> 0 | AD26: =Res!AA150 -> 0 | AE26: =Res!AE145 -> 0 | AF26: =Res!AE146 -> 0 | AG26: =Res!AE147 -> 0 | AH26: =Res!AE148 -> 0 | AI26: =Res!AE149 -> 0 | AJ26: =Res!AE150 -> 0 | AK26: =Res!AA151 -> 0 | AL26: =Res!AE151 -> 0 | AM26: 0 | AN26: =Res!AI145+Res!AL145 -> 0 | AO26: =Res!AI146+Res!AL146 -> 0 | AP26: =Res!AI147+Res!AL147 -> 0 | AQ26: =Res!AI148+Res!AL148 -> 0 | AR26: =Res!AI149+Res!AL149 -> 0
A27: 17 | B27: =Res!B108 -> ROYAN 1 | C27: =Res!E109 -> 22 | D27: =Res!E110 -> 17 | E27: =Res!E111 -> 17 | F27: =Res!E112 -> 19 | G27: =Res!E113 -> 8 | H27: =Res!E114 -> 10 | I27: =Res!I109 -> 0 | J27: =Res!I110 -> 0 | K27: =Res!I111 -> 0 | L27: =Res!I112 -> 0 | M27: =Res!I113 -> 0 | N27: =Res!I114 -> 0 | O27: =Res!E115 -> 85 | P27: =Res!I115 -> 0 | Q27: 85 | R27: =Res!M109+Res!P109 -> 8 | S27: =Res!M110+Res!P110 -> 22 | T27: =Res!M111+Res!P111 ->  | U27: =Res!M112+Res!P112 ->  | V27: =Res!$M$113+Res!$P$113 ->  | W27: 12 | X27: =Res!X27 -> 0 | Y27: =Res!AA28 -> 0 | Z27: 18 | AA27: LA PALMYRE 2 | AB27: 0 | AC27: =Res!AA158 -> 0 | AD27: =Res!AA159 -> 0 | AE27: =Res!AE154 -> 0 | AF27: =Res!AE155 -> 0 | AG27: =Res!AE156 -> 0 | AH27: =Res!AE157 -> 0 | AI27: =Res!AE158 -> 0 | AJ27: =Res!AE159 -> 0 | AK27: =Res!AA160 -> 0 | AL27: =Res!AE160 -> 0 | AM27: 0 | AN27: =Res!AI154+Res!AL154 -> 0 | AO27: =Res!AI155+Res!AL155 -> 0 | AP27: =Res!AI156+Res!AL156 -> 0 | AQ27: =Res!AI157+Res!AL157 -> 0 | AR27: =Res!AI158+Res!AL158 -> 0
A28: 18 | B28: =Res!B198 -> LA VALLADE 1 | C28: =Res!E199 -> 0 | D28: =Res!E200 -> 0 | E28: =Res!E201 -> 0 | F28: =Res!E202 -> 0 | G28: =Res!E203 -> 0 | H28: =Res!E204 -> 0 | I28: =Res!I199 -> 15 | J28: =Res!I200 -> 7 | K28: =Res!I201 -> 8 | L28: =Res!I202 -> 14 | M28: =Res!I203 -> 14 | N28: =Res!I204 -> 16 | O28: =Res!E205 -> 0 | P28: =Res!I205 -> 67 | Q28: 67 | R28: =Res!M199+Res!P199 -> 7 | S28: =Res!M200+Res!P200 -> 16 | T28: =Res!M201+Res!P201 ->  | U28: =Res!M202+Res!P202 ->  | V28: =Res!M203+Res!P203 ->  | W28: =Res!M204+Res!P204 ->  | Y28: 22 | Z28: 19 | AA28: OLERON 3 | AB28: 0 | AC28: =Res!AA167 -> 0 | AD28: =Res!AA168 -> 0 | AE28: =Res!AE163 -> 0 | AF28: =Res!AE164 -> 0 | AG28: =Res!AE165 -> 0 | AH28: =Res!AE166 -> 0 | AI28: =Res!AE167 -> 0 | AJ28: =Res!AE168 -> 0 | AK28: =Res!AA169 -> 0 | AL28: =Res!AE169 -> 0 | AM28: 0 | AN28: =Res!AI163+Res!AL163 -> 0 | AO28: =Res!AI164+Res!AL164 -> 0 | AP28: =Res!AI165+Res!AL165 -> 0 | AQ28: =Res!AI166+Res!AL166 -> 0 | AR28: =Res!AI167+Res!AL167 -> 0
A29: 19 | B29: =Res!B207 -> SAINTONGE 3 | C29: =Res!E208 -> 0 | D29: =Res!E209 -> 0 | E29: =Res!E210 -> 0 | F29: =Res!E211 -> 0 | G29: =Res!E212 -> 0 | H29: =Res!E213 -> 0 | I29: =Res!I208 -> 9 | J29: =Res!I209 -> 13 | K29: =Res!I210 -> 12 | L29: =Res!I211 -> 11 | M29: =Res!I212 -> 20 | N29: =Res!I213 -> 10 | O29: =Res!E214 -> 0 | P29: =Res!I214 -> 66 | Q29: 66 | R29: =Res!M208+Res!P208 -> 9 | S29: =Res!M209+Res!P209 -> 20 | T29: =Res!M210+Res!P210 ->  | U29: =Res!M211+Res!P211 ->  | V29: =Res!M212+Res!P212 ->  | W29: =Res!M213+Res!P213 ->  | Y29: 23 | Z29: 20 | AA29: LA ROCHELLE 3 | AB29: 0 | AC29: =Res!AA176 -> 0 | AD29: =Res!AA177 -> 0 | AE29: =Res!AE172 -> 0 | AF29: =Res!AE173 -> 0 | AG29: =Res!AE174 -> 0 | AH29: =Res!AE175 -> 0 | AI29: =Res!AE176 -> 0 | AJ29: =Res!AE177 -> 0 | AK29: =Res!AA178 -> 0 | AL29: =Res!AE178 -> 0 | AM29: 0 | AN29: =Res!AI172+Res!AL172 -> 0 | AO29: =Res!AI173+Res!AL173 -> 0 | AP29: =Res!AI174+Res!AL174 -> 0 | AQ29: =Res!AI175+Res!AL175 -> 0 | AR29: =Res!AI176+Res!AL176 -> 0
A30: 20 | B30: =Res!B45 -> LA PALMYRE 3 | C30: =Res!E46 -> 13 | D30: =Res!E47 -> 0 | E30: =Res!E48 -> 15 | F30: =Res!E49 -> 15 | G30: =Res!E50 -> 11 | H30: =Res!E51 -> 8 | I30: =Res!I46 -> 0 | J30: =Res!I47 -> 0 | K30: =Res!I48 -> 0 | L30: =Res!I49 -> 0 | M30: =Res!I50 -> 0 | N30: =Res!I51 -> 0 | O30: =Res!E52 -> 62 | P30: =Res!I52 -> 0 | Q30: 62 | R30: =Res!M46+Res!P46 -> 0 | S30: =Res!M47+Res!P47 -> 15 | T30: =Res!M48+Res!P48 ->  | U30: =Res!M49+Res!P49 ->  | V30: =Res!$M$50+Res!$P$50 ->  | W30: 5 | X30: =Res!X99 -> 0 | Y30: =Res!AA100 -> 0 | Z30: 21 | AA30: MONTENDRE 2 | AB30: 0 | AC30: =Res!AA185 -> 0 | AD30: =Res!AA186 -> 0 | AE30: =Res!AE181 -> 0 | AF30: =Res!AE182 -> 0 | AG30: =Res!AE183 -> 0 | AH30: =Res!AE184 -> 0 | AI30: =Res!AE185 -> 0 | AJ30: =Res!AE186 -> 0 | AK30: =Res!AA187 -> 0 | AL30: =Res!AE187 -> 0 | AM30: 0 | AN30: =Res!AI181+Res!AL181 -> 0 | AO30: =Res!AI182+Res!AL182 -> 0 | AP30: =Res!AI183+Res!AL183 -> 0 | AQ30: =Res!AI184+Res!AL184 -> 0 | AR30: =Res!AI185+Res!AL185 -> 0
A31: 21 | B31: =Res!B36 -> LA PALMYRE 2 | C31: =Res!E37 -> 19 | D31: =Res!E38 -> 10 | E31: =Res!E39 -> 13 | F31: =Res!E40 -> 5 | G31: =Res!E41 -> 7 | H31: =Res!E42 -> 7 | I31: =Res!I37 -> 0 | J31: =Res!I38 -> 0 | K31: =Res!I39 -> 0 | L31: =Res!I40 -> 0 | M31: =Res!I41 -> 0 | N31: =Res!I42 -> 0 | O31: =Res!E43 -> 56 | P31: =Res!I43 -> 0 | Q31: 56 | R31: =Res!M37+Res!P37 -> 5 | S31: =Res!M38+Res!P38 -> 19 | T31: =Res!M39+Res!P39 ->  | U31: =Res!M40+Res!P40 ->  | V31: =Res!$M$41+Res!$P$41 ->  | W31: 4 | X31: =Res!X36 -> 0 | Y31: =Res!AA37 -> 0 | Z31: 8 | AA31: MONTENDRE 3 | AB31: 0
A32: 22 | B32: =Res!B171 -> LA ROCHELLE 3 | C32: =Res!E172 -> 16 | D32: =Res!E173 -> 13 | E32: =Res!E174 -> 10 | F32: =Res!E175 -> 12 | G32: =Res!E176 -> 4 | H32: =Res!E177 -> 4 | I32: =Res!I172 -> 0 | J32: =Res!I173 -> 0 | K32: =Res!I174 -> 0 | L32: =Res!I175 -> 0 | M32: =Res!I176 -> 0 | N32: =Res!I177 -> 0 | O32: =Res!E178 -> 55 | P32: =Res!I178 -> 0 | Q32: 55 | R32: =Res!M172+Res!P172 -> 4 | S32: =Res!M173+Res!P173 -> 16 | T32: =Res!M174+Res!P174 ->  | U32: =Res!M175+Res!P175 ->  | V32: =Res!M176+Res!P176 ->  | W32: 19 | X32: =Res!X144 -> 0 | Y32: =Res!AA145 -> 0 | Z32: 22 | AA32: 0 | AB32: 22
A33: 23 | B33: =Res!B72 -> MONTENDRE 3 | C33: =Res!E73 -> 11 | D33: =Res!E74 -> 5 | E33: =Res!E75 -> 5 | F33: =Res!E76 -> 3 | G33: =Res!E77 -> for | H33: =Res!E78 -> for | I33: =Res!I73 -> 9 | J33: =Res!I74 -> 3 | K33: =Res!I75 -> 6 | L33: =Res!I76 -> 11 | M33: =Res!I77 -> 12 | N33: =Res!I78 -> 0 | O33: =Res!E79 -> FOR | P33: =Res!I79 -> 41 | Q33: 1 | R33: =Res!M73+Res!P73 -> 0 | S33: =Res!M74+Res!P74 -> 23 | T33: =Res!M75+Res!P75 -> 16 | U33: =Res!M76+Res!P76 -> 14 | V33: =Res!$M$77+Res!$P$77 -> 9 | W33: 8 | X33: =Res!X162 -> 0 | Y33: =Res!AA163 -> 0 | Z33: 23 | AA33: 0 | AB33: 23
A34: 24 | B34: =Res!B216 -> 0 | C34: =Res!E217 -> 0 | D34: =Res!E218 -> 0 | E34: =Res!E219 -> 0 | F34: =Res!E220 -> 0 | G34: =Res!E221 -> 0 | H34: =Res!E222 -> 0 | I34: =Res!I217 -> 0 | J34: =Res!I218 -> 0 | K34: =Res!I219 -> 0 | L34: =Res!I220 -> 0 | M34: =Res!I221 -> 0 | N34: =Res!I222 -> 0 | O34: =Res!E223 -> 0 | P34: =Res!I223 -> 0 | Q34: =IF(OR(O34="FOR",P34="FOR"),1,IF(OR(ISTEXT(O34),ISTEXT(P34)),2,(O34)+(P34))) -> 0 | R34: =Res!M217+Res!P217 -> 0 | S34: =Res!M218+Res!P218 -> 0 | T34: =Res!M219+Res!P219 ->  | U34: =Res!M220+Res!P220 ->  | V34: =Res!M221+Res!P221 ->  | W34: =Res!M222+Res!P222 ->  | Y34: 24 | Z34: 24 | AA34: 0 | AB34: 24

Sheet Feuil1

Sheet Feuil2
